Workbook

Sheet Documentation
C1: NEW FOR 2009 - COUNTY GROWTH PROFILES
A3: The Office of Transportation Data and Analysis has recently added an enhancement to the "Least
A4: Squares Worksheet." Because of recent leveling off and in some cases declines in traffic volumes over
A5: the last few years, we began an analysis of causal factors. We looked at socio-economic data by county
A6: from 1992 through 2007. The data we analyzed was population, labor force, employment and
A7: number of households. From these inputs we cartegorized the counties into one of four growth profiles -
A8: high, medium high, medium low and low. Now the analyst will have the option of applying a factor based
A9: on the socio-economic data for that county to the Base and Forecast year projections derived from the least
A10: squares regression analysis.
A12: The factors are meant for use in the non-urban areas within the specific county. If the project is within a
A13: with city over 5,000 population, the factors do not apply - similar to the concept of urban and rural factors
A14: on the vehicle class count expansion worksheets.
A16: These factors are automatically applied to the historic least squares regression analysis. They originate
A17: from the Forecast tab when you enter the county that the project is located in. Please note that the
A18: forecaster has the option to accept the projection based on historic data or to use the historic data
A19: projection tempered by the county factor - or, some value in between. Whatever the analyst chooses to
A20: do, he/she should document their procedure in the Remarks area of the Forecast Tab. This guideline
A21: serves as another tool to improve the quality and inputs of our traffic forecasting process.
A23: If you have further questions, contact Tom Nelson at (651) 366-3868
B27: As of April 1, 2008, we have changed the seasonal adjustment factors
B56: Note: The URBAN vehicle types discussed on the Cumesal-B sheet were developed
B57: primarily for use in the Seven County Metropolitan Area. They can also be used
B58: for segments that are near cities with over 5,000 population.
B60: CAUTION: USE ONLY ONE SET OF DEFAULTS ON EACH "B" SEGMENT FOR THE
B61: CORRESPPONDING "A" SEGMENT- feel free to mix urban and rural defaults in the
B62: same forecast if necessaryi
B64: More comprehensive information on the use of this spreadsheet on TDA's web site.
B65: Refer to "Procedures Manual for Forecasting Traffic on Minnesota's Highways"
B66: in downloadable PDF format.

Sheet Forecast
C2: MINNESOTA DEPARTMENT OF TRANSPORTATION
C4: MEMO
C6: Transportation Data and Analysis
C7: 395 John Ireland Boulevard - MS 450 | G7: Phone: | H7: (651) 366-3856
C8: St. Paul, Minnesota 55155 | G8: Fax: | H8: (651) 366-3886
C10: =NOW() -> 2013-02-15T09:32:49.330
B12: To:
B16: From: | C16: Gene Hicks
C17: Section Director
C18: Traffic Forecasting and Analysis, MS 450
B20: Subject: | C20: TRAFFIC FORECAST
G21: Beg Pt
B22: Route Type: | G22: End Pt
B23: Route Num | G23: SP#
A24: Letting Date: | G24: Forecast #
A25: Program Category: | G25: County:
A26: Project Manager: | G26: District:
G27: Miles:
A28: Project Limits:
A30: Enclosures (check those that apply):
B32: Project map | G32: VCL expansion worksheet | J32: INTERSTATE
J33: MN TRUNK
B34: Least squares analysis | G34: Cumulative ESAL Report | J34: US TRUNK
J35: CSAH
B36: Cumulative ESAL worksheet, Segment A | G36: Other (describe) | J36: CR
J37: OTHER
B38: Cumulative ESAL worksheet, Segment B | G38: Other (describe)
B40: AADT and/or DHV traffic schematic diagram
B42: REMARKS:
A54: FILE

Sheet 16-24 Vehicle C.C.1
A1: 16 HR. OR 24 HR. VEHICLE CLASS COUNT EXPANSION WORKSHEET 1 | R1: New Seasonal Adjustment Factors For Urban Area
A2: SITE NUMBER: | G2: COUNTY: | H2: =IF(+Forecast!$H$25=0," ",+Forecast!$H$25) ->  | K2: Area type must be selected
A3: SITE DESCRIPTION: | K3: for correct adjustment factors | R3: Body Type | S3: Jan | T3: Feb | U3: Mar | V3: Apr | W3: May | X3: Jun | Y3: Jul | Z3: Aug | AA3: Sep | AB3: Oct | AC3: Nov | AD3: Dec
A4: PROJECT SP#: | B4: =IF(+Forecast!$H$23=0," ",+Forecast!$H$23) ->  | G4: YEAR OF COUNT ->: | R4: CARS+PICKUP | S4: 1.101818568 | T4: 1.042399606 | U4: 1.020715235 | V4: 0.9825595111 | W4: 0.9804214303 | X4: 0.9524454101 | Y4: 0.9021672653 | Z4: 0.8851863969 | AA4: 0.8463204291 | AB4: 0.9766528447 | AC4: 1.054754554 | AD4: 1.129700419
A5: MONTH NUMBER OF COUNT: | G5: CONSTRAIN AADT ->: | R5: 2ASU | S5: 0.9026364913 | T5: 0.9152095345 | U5: 0.8809693435 | V5: 0.8433149801 | W5: 0.8049514058 | X5: 0.9077923889 | Y5: 0.79842163 | Z5: 0.7463956493 | AA5: 0.6742423882 | AB5: 0.8110823695 | AC5: 0.878061286 | AD5: 0.9497618566
A6: 16 or 24 HR | B6: 24 | R6: 3+ASU | S6: 1.192485605 | T6: 1.196781163 | U6: 1.149691715 | V6: 0.8838166574 | W6: 0.7900560436 | X6: 0.8404904399 | Y6: 0.6830196815 | Z6: 0.6685616697 | AA6: 0.5786451918 | AB6: 0.6134526971 | AC6: 0.7366804617 | AD6: 1.001165084
A7: VEHICLE TYPE | C7: RAW COUNT | D7: AADT ADJ FACTOR | F7: ADJUSTED RAW | G7: VEH. TYPE PERCENTS | H7: A.C.F. | K7: Note: The URBAN adjustment factors were | R7: 3A Semi | S7: 1.119647785 | T7: 1.098865688 | U7: 1.032355984 | V7: 0.9031212033 | W7: 0.8352405532 | X7: 0.8564495131 | Y7: 0.7867958545 | Z7: 0.6742755593 | AA7: 0.6669477105 | AB7: 0.8886683685 | AC7: 0.827933027 | AD7: 1.080772858
A8: CARS AND PICKUPS | D8: =IF(O9=1,IF(+I5=0,(IF(B6=16,1.09,1)*CHOOSE((C5)+1,1,1.31,1.23,1.19,1.06,0.98,0.92,0.84,0.88,0.91,0.95,1.08,1.12)),NA()),IF(+I5=0,(IF(B6=16,1.09,1)*CHOOSE((C5)+1,1,1.08,1.04,1.04,0.97,0.97,0.96,0.91,0.9,0.93,0.88,0.97,1)),NA())) -> 1 | F8: =IF(+I5=0,ROUND(+D8*C8,0),+I5-SUM(F9:F15)) -> 0 | H8: =C16/(((C8+C9)*2+(C10+C11)*3+(C12+C14)*4+(C13+C15)*5)/2) ->  | K8: developed primarily for use in the Seven | R8: 4A Semi | S8: 1.119647785 | T8: 1.098865688 | U8: 1.032355984 | V8: 0.9031212033 | W8: 0.8352405532 | X8: 0.8564495131 | Y8: 0.7867958545 | Z8: 0.6742755593 | AA8: 0.6669477105 | AB8: 0.8886683685 | AC8: 0.827933027 | AD8: 1.080772858
A9: 2 AXLE 6 TIRE | D9: =IF(O9=1,IF(B6=16,1.08,1)*CHOOSE((C5)+1,1,1.02,0.93,0.96,0.89,0.85,0.87,0.83,0.83,0.76,0.77,0.88,1),IF(B6=16,1.08,1)*CHOOSE((C5)+1,1,0.96,0.88,0.92,0.9,0.89,0.86,0.8,0.76,0.83,0.76,0.79,0.84)) -> 1 | F9: =IF(B6=16,ROUND(+D9*C9,0),(IF(B6=24,ROUND(D9*C9,0),#VALUE!))) -> 0 | G9: =IF(F9=0,0,+F9/F16) -> 0 | K9: County Metropolitan Area. They can also | O9: 1 | R9: 5+A SEMI | S9: 0.8694207179 | T9: 0.8776904625 | U9: 0.8647540382 | V9: 0.8094064142 | W9: 0.792292913 | X9: 0.8333092409 | Y9: 0.7149806283 | Z9: 0.7108350254 | AA9: 0.6598929083 | AB9: 0.7505864443 | AC9: 0.8967585745 | AD9: 0.9413801686
A10: 3+ AXLE SINGLE UNIT | D10: =IF(O9=1,IF(B6=16,1.07,1)*CHOOSE((C5)+1,1,1.24,1.17,1.12,0.89,0.76,0.71,0.7,0.66,0.65,0.64,0.86,1.09),IF(B6=16,1.07,1)*CHOOSE((C5)+1,1,1.23,1.16,1.21,0.86,0.75,0.67,0.59,0.54,0.64,0.64,0.8,1.09)) -> 1 | F10: =IF(B6=16,ROUND(+D10*C10,0),(IF(B6=24,ROUND(D10*C10,0),#VALUE!))) -> 0 | G10: =IF(F10=0,0,+F10/F16) -> 0 | K10: be used for other cities with over 5,000 in pop. | N10: 2 | O10: 2 | P10: 16 | R10: TT/BUS | S10: 1.406614623 | T10: 1.328803664 | U10: 1.158738771 | V10: 1.026157718 | W10: 0.9327073295 | X10: 0.8621004092 | Y10: 0.7705178987 | Z10: 0.623245916 | AA10: 0.5899275403 | AB10: 0.7789227543 | AC10: 0.8803850224 | AD10: 1.168382181
A11: 3 AXLE SEMI (TST) | D11: =IF(O9=1,IF(B6=16,1.1,1)*CHOOSE((C5)+1,1,1.25,1.15,1.11,0.97,0.84,0.77,0.72,0.72,0.72,0.83,1.07,1.25),IF(B6=16,1.1,1)*CHOOSE((C5)+1,1,1.24,1.18,1.02,0.88,0.86,0.8,0.74,0.7,0.72,0.71,0.87,1.17)) -> 1 | F11: =IF(B6=16,ROUND(+D11*C11,0),(IF(B6=24,ROUND(D11*C11,0),#VALUE!))) -> 0 | G11: =IF(F11=0,0,+F11/F16) -> 0 | P11: 24 | R11: TWINS | S11: 0.890183558 | T11: 0.8452826494 | U11: 0.8246298829 | V11: 0.7536070918 | W11: 0.7787765432 | X11: 0.914883437 | Y11: 0.8313230333 | Z11: 0.7228027477 | AA11: 0.6972492539 | AB11: 0.7525653487 | AC11: 0.8886754755 | AD11: 0.8821039871
A12: 4 AXLE SEMI (TST) | D12: =IF(O9=1,IF(B6=16,1.1,1)*CHOOSE((C5)+1,1,1.25,1.15,1.11,0.97,0.84,0.77,0.72,0.72,0.72,0.83,1.07,1.25),IF(B6=16,1.1,1)*CHOOSE((C5)+1,1,1.24,1.18,1.02,0.88,0.86,0.8,0.74,0.7,0.72,0.71,0.87,1.17)) -> 1 | F12: =IF(B6=16,ROUND(+D12*C12,0),(IF(B6=24,ROUND(D12*C12,0),#VALUE!))) -> 0 | G12: =IF(F12=0,0,+F12/F16) -> 0
A13: 5+ AXLE SEMI (TST) | D13: =IF(O9=1, IF(B6=16,1.17,1)*CHOOSE((C5)+1,1,0.93,0.86,0.87,0.82,0.79,0.79,0.82,0.78,0.8,0.73,0.87,0.9),IF(B6=16,1.17,1)*CHOOSE((C5)+1,1,1.02,0.99,1,0.79,0.75,0.71,0.69,0.65,0.7,0.76,0.76,0.99)) -> 1 | F13: =IF(B6=16,ROUND(+D13*C13,0),(IF(B6=24,ROUND(D13*C13,0),#VALUE!))) -> 0 | G13: =IF(F13=0,0,+F13/F16) -> 0 | R13: New Seasonal Adjustment Factors For Rural Area
A14: TR TR, BUSES | D14: =IF(O9=1,IF(B6=16,1.09,1)*CHOOSE((C5)+1,1,1.6,1.44,1.31,0.99,0.81,0.75,0.67,0.68,0.7,0.68,0.96,1.4),IF(B6=16,1.09,1)*CHOOSE((C5)+1,1,1.51,1.31,1.19,1.03,0.92,0.82,0.76,0.71,0.74,0.77,0.94,1.07)) -> 1 | F14: =IF(B6=16,ROUND(+D14*C14,0),(IF(B6=24,ROUND(D14*C14,0),#VALUE!))) -> 0 | G14: =IF(F14=0,0,+F14/F16) -> 0
A15: TWIN TRAILERS | D15: =IF(O9=1,IF(B6=16,1.3,1)*CHOOSE((C5)+1,1,0.95,0.86,0.92,0.86,0.86,0.75,0.8,0.76,0.75,0.7,0.82,0.76),IF(B6=16,1.3,1)*CHOOSE((C5)+1,1,1.07,1.02,1.02,0.84,0.78,0.74,0.69,0.65,0.67,0.77,0.93,1.09)) -> 1 | F15: =IF(B6=16,ROUND(+D15*C15,0),(IF(B6=24,ROUND(D15*C15,0),#VALUE!))) -> 0 | G15: =IF(F15=0,0,+F15/F16) -> 0 | R15: Body Type | S15: Jan | T15: Feb | U15: Mar | V15: Apr | W15: May | X15: Jun | Y15: Jul | Z15: Aug | AA15: Sep | AB15: Oct | AC15: Nov | AD15: Dec
A16: TOTALS -----------> | C16: =SUM(C8:C15) -> 0 | D16: --------> | E16: =+F16/C16 ->  | F16: =SUM(F8:F15) -> 0 | G16: =SUM(F9:F15)/F16 ->  | H16: (%HC) | R16: CARS+PICKUP | S16: 1.31474341 | T16: 1.260555416 | U16: 1.21910632 | V16: 1.133579236 | W16: 0.9674365183 | X16: 0.8811334106 | Y16: 0.8068667431 | Z16: 0.8357105532 | AA16: 0.9492525986 | AB16: 1.029751516 | AC16: 1.125437083 | AD16: 1.198499723
R17: 2ASU | S17: 1.042113668 | T17: 1.079615196 | U17: 1.073531771 | V17: 0.9700373761 | W17: 0.8766061595 | X17: 0.8518294275 | Y17: 0.8505186426 | Z17: 0.8291160376 | AA17: 0.8099880704 | AB17: 0.8257555049 | AC17: 0.9336566414 | AD17: 0.9644660003
C18: DO YOU HAVE THE CORRECT RURAL OR URBAN FACTOR? | R18: 3+ASU | S18: 1.339197634 | T18: 1.439771113 | U18: 1.2792395 | V18: 0.9324515918 | W18: 0.8121908563 | X18: 0.6072317642 | Y18: 0.7099775765 | Z18: 0.6874079787 | AA18: 0.7041889955 | AB18: 0.6966682438 | AC18: 0.8492378659 | AD18: 1.245576541
A19: =+B2 -> 0 | Q19: 1 - January | R19: 3A Semi | S19: 1.574028515 | T19: 1.540791338 | U19: 1.492648881 | V19: 1.223354753 | W19: 0.8992402512 | X19: 0.8188352771 | Y19: 0.7347486488 | Z19: 0.6803021132 | AA19: 0.744357258 | AB19: 0.8756086261 | AC19: 1.096356596 | AD19: 1.273657955
A20: =+B3 -> 0 | Q20: 2 - February | R20: 4A Semi | S20: 1.574028515 | T20: 1.540791338 | U20: 1.492648881 | V20: 1.223354753 | W20: 0.8992402512 | X20: 0.8188352771 | Y20: 0.7347486488 | Z20: 0.6803021132 | AA20: 0.744357258 | AB20: 0.8756086261 | AC20: 1.096356596 | AD20: 1.273657955
Q21: 3 - March | R21: 5+A SEMI | S21: 0.9774273605 | T21: 0.9048104915 | U21: 0.8599070523 | V21: 0.8206315401 | W21: 0.7778721302 | X21: 0.7171337842 | Y21: 0.7732008439 | Z21: 0.7471229023 | AA21: 0.7637578228 | AB21: 0.7392151467 | AC21: 0.877552007 | AD21: 0.9310532595
Q22: 4 - April | R22: TT/BUS | S22: 2.053065092 | T22: 2.059457219 | U22: 1.54934048 | V22: 1.1114678 | W22: 0.8736816042 | X22: 0.7417814046 | Y22: 0.705897493 | Z22: 0.6679690633 | AA22: 0.7016210228 | AB22: 0.7888943814 | AC22: 1.01168125 | AD22: 1.575509804
Q23: 5 - May | R23: TWINS | S23: 1.420065205 | T23: 0.9516135039 | U23: 0.9414734563 | V23: 0.9360222446 | W23: 0.8601389411 | X23: 0.8665974564 | Y23: 0.8294879216 | Z23: 0.6612789319 | AA23: 0.6935770556 | AB23: 0.6096555077 | AC23: 0.7557197928 | AD23: 0.8949536413
Q24: 6 - June
Q25: 7 - July
Q26: 8 - August
Q27: 9 - September
Q28: 10 - October
Q29: 11 - November
Q30: 12 - December
A52: =IF($O$9=1,"You Have Selected the Rural Factor", "You Have Selected the Urban Factor") -> You Have Selected the Rural Factor

Sheet 16-24 Vehicle C.C.2
A1: 16 HR. OR 24 HR. VEHICLE CLASS COUNT EXPANSION WORKSHEET 2 | R1: New Seasonal Adjustment Factors For Urban Area
A2: SITE NUMBER: | B2: =IF(+'16-24 Vehicle C.C.1'!$B$2=0," ",+'16-24 Vehicle C.C.1'!$B$2) ->  | G2: COUNTY: | H2: =IF(+Forecast!$H$25=0," ",+Forecast!$H$25) ->  | K2: Area type must be selected
A3: SITE DESCRIPTION: | B3: =IF(+'16-24 Vehicle C.C.1'!$B$3=0," ",+'16-24 Vehicle C.C.1'!$B$3) ->  | K3: for correct adjustment factors | R3: Body Type | S3: Jan | T3: Feb | U3: Mar | V3: Apr | W3: May | X3: Jun | Y3: Jul | Z3: Aug | AA3: Sep | AB3: Oct | AC3: Nov | AD3: Dec
A4: PROJECT SP#: | B4: =IF(+Forecast!$H$23=0," ",+Forecast!$H$23) ->  | G4: YEAR OF COUNT ->: | R4: CARS+PICKUP | S4: 1.101818568 | T4: 1.042399606 | U4: 1.020715235 | V4: 0.9825595111 | W4: 0.9804214303 | X4: 0.9524454101 | Y4: 0.9021672653 | Z4: 0.8851863969 | AA4: 0.8463204291 | AB4: 0.9766528447 | AC4: 1.054754554 | AD4: 1.129700419
A5: MONTH NUMBER OF COUNT: | G5: CONSTRAIN AADT ->: | R5: 2ASU | S5: 0.9026364913 | T5: 0.9152095345 | U5: 0.8809693435 | V5: 0.8433149801 | W5: 0.8049514058 | X5: 0.9077923889 | Y5: 0.79842163 | Z5: 0.7463956493 | AA5: 0.6742423882 | AB5: 0.8110823695 | AC5: 0.878061286 | AD5: 0.9497618566
A6: 16 or 24 HR | B6: 24 | R6: 3+ASU | S6: 1.192485605 | T6: 1.196781163 | U6: 1.149691715 | V6: 0.8838166574 | W6: 0.7900560436 | X6: 0.8404904399 | Y6: 0.6830196815 | Z6: 0.6685616697 | AA6: 0.5786451918 | AB6: 0.6134526971 | AC6: 0.7366804617 | AD6: 1.001165084
A7: VEHICLE TYPE | C7: RAW COUNT | D7: AADT ADJ FACTOR | F7: ADJUSTED RAW | G7: VEH. TYPE PERCENTS | H7: A.C.F. | K7: Note: The URBAN adjustment factors were | R7: 3A Semi | S7: 1.119647785 | T7: 1.098865688 | U7: 1.032355984 | V7: 0.9031212033 | W7: 0.8352405532 | X7: 0.8564495131 | Y7: 0.7867958545 | Z7: 0.6742755593 | AA7: 0.6669477105 | AB7: 0.8886683685 | AC7: 0.827933027 | AD7: 1.080772858
A8: CARS AND PICKUPS | D8: =IF(O9=1,IF(+I5=0,(IF(B6=16,1.09,1)*CHOOSE((C5)+1,1,1.31,1.23,1.19,1.06,0.98,0.92,0.84,0.88,0.91,0.95,1.08,1.12)),NA()),IF(+I5=0,(IF(B6=16,1.09,1)*CHOOSE((C5)+1,1,1.08,1.04,1.04,0.97,0.97,0.96,0.91,0.9,0.93,0.88,0.97,1)),NA())) -> 1 | F8: =IF(+I5=0,ROUND(+D8*C8,0),+I5-SUM(F9:F15)) -> 0 | H8: =C16/(((C8+C9)*2+(C10+C11)*3+(C12+C14)*4+(C13+C15)*5)/2) ->  | K8: developed primarily for use in the Seven | R8: 4A Semi | S8: 1.119647785 | T8: 1.098865688 | U8: 1.032355984 | V8: 0.9031212033 | W8: 0.8352405532 | X8: 0.8564495131 | Y8: 0.7867958545 | Z8: 0.6742755593 | AA8: 0.6669477105 | AB8: 0.8886683685 | AC8: 0.827933027 | AD8: 1.080772858
A9: 2 AXLE 6 TIRE | D9: =IF(O9=1,IF(B6=16,1.08,1)*CHOOSE((C5)+1,1,1.02,0.93,0.96,0.89,0.85,0.87,0.83,0.83,0.76,0.77,0.88,1),IF(B6=16,1.08,1)*CHOOSE((C5)+1,1,0.96,0.88,0.92,0.9,0.89,0.86,0.8,0.76,0.83,0.76,0.79,0.84)) -> 1 | F9: =IF(B6=16,ROUND(+D9*C9,0),(IF(B6=24,ROUND(D9*C9,0),#VALUE!))) -> 0 | G9: =IF(F9=0,0,+F9/F16) -> 0 | K9: County Metropolitan Area. They can also | O9: 1 | R9: 5+A SEMI | S9: 0.8694207179 | T9: 0.8776904625 | U9: 0.8647540382 | V9: 0.8094064142 | W9: 0.792292913 | X9: 0.8333092409 | Y9: 0.7149806283 | Z9: 0.7108350254 | AA9: 0.6598929083 | AB9: 0.7505864443 | AC9: 0.8967585745 | AD9: 0.9413801686
A10: 3+ AXLE SINGLE UNIT | D10: =IF(O9=1,IF(B6=16,1.07,1)*CHOOSE((C5)+1,1,1.24,1.17,1.12,0.89,0.76,0.71,0.7,0.66,0.65,0.64,0.86,1.09),IF(B6=16,1.07,1)*CHOOSE((C5)+1,1,1.23,1.16,1.21,0.86,0.75,0.67,0.59,0.54,0.64,0.64,0.8,1.09)) -> 1 | F10: =IF(B6=16,ROUND(+D10*C10,0),(IF(B6=24,ROUND(D10*C10,0),#VALUE!))) -> 0 | G10: =IF(F10=0,0,+F10/F16) -> 0 | K10: be used for other cities with over 5,000 in pop. | N10: 2 | O10: 2 | P10: 16 | R10: TT/BUS | S10: 1.406614623 | T10: 1.328803664 | U10: 1.158738771 | V10: 1.026157718 | W10: 0.9327073295 | X10: 0.8621004092 | Y10: 0.7705178987 | Z10: 0.623245916 | AA10: 0.5899275403 | AB10: 0.7789227543 | AC10: 0.8803850224 | AD10: 1.168382181
A11: 3 AXLE SEMI (TST) | D11: =IF(O9=1,IF(B6=16,1.1,1)*CHOOSE((C5)+1,1,1.25,1.15,1.11,0.97,0.84,0.77,0.72,0.72,0.72,0.83,1.07,1.25),IF(B6=16,1.1,1)*CHOOSE((C5)+1,1,1.24,1.18,1.02,0.88,0.86,0.8,0.74,0.7,0.72,0.71,0.87,1.17)) -> 1 | F11: =IF(B6=16,ROUND(+D11*C11,0),(IF(B6=24,ROUND(D11*C11,0),#VALUE!))) -> 0 | G11: =IF(F11=0,0,+F11/F16) -> 0 | P11: 24 | R11: TWINS | S11: 0.890183558 | T11: 0.8452826494 | U11: 0.8246298829 | V11: 0.7536070918 | W11: 0.7787765432 | X11: 0.914883437 | Y11: 0.8313230333 | Z11: 0.7228027477 | AA11: 0.6972492539 | AB11: 0.7525653487 | AC11: 0.8886754755 | AD11: 0.8821039871
A12: 4 AXLE SEMI (TST) | D12: =IF(O9=1,IF(B6=16,1.1,1)*CHOOSE((C5)+1,1,1.25,1.15,1.11,0.97,0.84,0.77,0.72,0.72,0.72,0.83,1.07,1.25),IF(B6=16,1.1,1)*CHOOSE((C5)+1,1,1.24,1.18,1.02,0.88,0.86,0.8,0.74,0.7,0.72,0.71,0.87,1.17)) -> 1 | F12: =IF(B6=16,ROUND(+D12*C12,0),(IF(B6=24,ROUND(D12*C12,0),#VALUE!))) -> 0 | G12: =IF(F12=0,0,+F12/F16) -> 0
A13: 5+ AXLE SEMI (TST) | D13: =IF(O9=1, IF(B6=16,1.17,1)*CHOOSE((C5)+1,1,0.93,0.86,0.87,0.82,0.79,0.79,0.82,0.78,0.8,0.73,0.87,0.9),IF(B6=16,1.17,1)*CHOOSE((C5)+1,1,1.02,0.99,1,0.79,0.75,0.71,0.69,0.65,0.7,0.76,0.76,0.99)) -> 1 | F13: =IF(B6=16,ROUND(+D13*C13,0),(IF(B6=24,ROUND(D13*C13,0),#VALUE!))) -> 0 | G13: =IF(F13=0,0,+F13/F16) -> 0 | R13: New Seasonal Adjustment Factors For Rural Area
A14: TR TR, BUSES | D14: =IF(O9=1,IF(B6=16,1.09,1)*CHOOSE((C5)+1,1,1.6,1.44,1.31,0.99,0.81,0.75,0.67,0.68,0.7,0.68,0.96,1.4),IF(B6=16,1.09,1)*CHOOSE((C5)+1,1,1.51,1.31,1.19,1.03,0.92,0.82,0.76,0.71,0.74,0.77,0.94,1.07)) -> 1 | F14: =IF(B6=16,ROUND(+D14*C14,0),(IF(B6=24,ROUND(D14*C14,0),#VALUE!))) -> 0 | G14: =IF(F14=0,0,+F14/F16) -> 0
A15: TWIN TRAILERS | D15: =IF(O9=1,IF(B6=16,1.3,1)*CHOOSE((C5)+1,1,0.95,0.86,0.92,0.86,0.86,0.75,0.8,0.76,0.75,0.7,0.82,0.76),IF(B6=16,1.3,1)*CHOOSE((C5)+1,1,1.07,1.02,1.02,0.84,0.78,0.74,0.69,0.65,0.67,0.77,0.93,1.09)) -> 1 | F15: =IF(B6=16,ROUND(+D15*C15,0),(IF(B6=24,ROUND(D15*C15,0),#VALUE!))) -> 0 | G15: =IF(F15=0,0,+F15/F16) -> 0 | R15: Body Type | S15: Jan | T15: Feb | U15: Mar | V15: Apr | W15: May | X15: Jun | Y15: Jul | Z15: Aug | AA15: Sep | AB15: Oct | AC15: Nov | AD15: Dec
A16: TOTALS -----------> | C16: =SUM(C8:C15) -> 0 | D16: --------> | E16: =+F16/C16 ->  | F16: =SUM(F8:F15) -> 0 | G16: =SUM(F9:F15)/F16 ->  | H16: (%HC) | R16: CARS+PICKUP | S16: 1.31474341 | T16: 1.260555416 | U16: 1.21910632 | V16: 1.133579236 | W16: 0.9674365183 | X16: 0.8811334106 | Y16: 0.8068667431 | Z16: 0.8357105532 | AA16: 0.9492525986 | AB16: 1.029751516 | AC16: 1.125437083 | AD16: 1.198499723
R17: 2ASU | S17: 1.042113668 | T17: 1.079615196 | U17: 1.073531771 | V17: 0.9700373761 | W17: 0.8766061595 | X17: 0.8518294275 | Y17: 0.8505186426 | Z17: 0.8291160376 | AA17: 0.8099880704 | AB17: 0.8257555049 | AC17: 0.9336566414 | AD17: 0.9644660003
C18: DO YOU HAVE THE CORRECT RURAL OR URBAN FACTOR? | R18: 3+ASU | S18: 1.339197634 | T18: 1.439771113 | U18: 1.2792395 | V18: 0.9324515918 | W18: 0.8121908563 | X18: 0.6072317642 | Y18: 0.7099775765 | Z18: 0.6874079787 | AA18: 0.7041889955 | AB18: 0.6966682438 | AC18: 0.8492378659 | AD18: 1.245576541
A19: =+B2 ->  | Q19: 1 - January | R19: 3A Semi | S19: 1.574028515 | T19: 1.540791338 | U19: 1.492648881 | V19: 1.223354753 | W19: 0.8992402512 | X19: 0.8188352771 | Y19: 0.7347486488 | Z19: 0.6803021132 | AA19: 0.744357258 | AB19: 0.8756086261 | AC19: 1.096356596 | AD19: 1.273657955
A20: =+B3 ->  | Q20: 2 - February | R20: 4A Semi | S20: 1.574028515 | T20: 1.540791338 | U20: 1.492648881 | V20: 1.223354753 | W20: 0.8992402512 | X20: 0.8188352771 | Y20: 0.7347486488 | Z20: 0.6803021132 | AA20: 0.744357258 | AB20: 0.8756086261 | AC20: 1.096356596 | AD20: 1.273657955
Q21: 3 - March | R21: 5+A SEMI | S21: 0.9774273605 | T21: 0.9048104915 | U21: 0.8599070523 | V21: 0.8206315401 | W21: 0.7778721302 | X21: 0.7171337842 | Y21: 0.7732008439 | Z21: 0.7471229023 | AA21: 0.7637578228 | AB21: 0.7392151467 | AC21: 0.877552007 | AD21: 0.9310532595
Q22: 4 - April | R22: TT/BUS | S22: 2.053065092 | T22: 2.059457219 | U22: 1.54934048 | V22: 1.1114678 | W22: 0.8736816042 | X22: 0.7417814046 | Y22: 0.705897493 | Z22: 0.6679690633 | AA22: 0.7016210228 | AB22: 0.7888943814 | AC22: 1.01168125 | AD22: 1.575509804
Q23: 5 - May | R23: TWINS | S23: 1.420065205 | T23: 0.9516135039 | U23: 0.9414734563 | V23: 0.9360222446 | W23: 0.8601389411 | X23: 0.8665974564 | Y23: 0.8294879216 | Z23: 0.6612789319 | AA23: 0.6935770556 | AB23: 0.6096555077 | AC23: 0.7557197928 | AD23: 0.8949536413
Q24: 6 - June
Q25: 7 - July
Q26: 8 - August
Q27: 9 - September
Q28: 10 - October
Q29: 11 - November
Q30: 12 - December
A52: =IF($O$9=1,"You Have Selected the Rural Factor", "You Have Selected the Urban Factor") -> You Have Selected the Rural Factor

Sheet 16-24 Vehicle C.C.3
A1: 16 HR. OR 24 HR. VEHICLE CLASS COUNT EXPANSION WORKSHEET 3 | R1: New Seasonal Adjustment Factors For Urban Area
A2: SITE NUMBER: | B2: =IF(+'16-24 Vehicle C.C.1'!$B$2=0," ",+'16-24 Vehicle C.C.1'!$B$2) ->  | G2: COUNTY: | H2: =IF(+Forecast!$H$25=0," ",+Forecast!$H$25) ->  | K2: Area type must be selected
A3: SITE DESCRIPTION: | B3: =IF(+'16-24 Vehicle C.C.1'!$B$3=0," ",+'16-24 Vehicle C.C.1'!$B$3) ->  | K3: for correct adjustment factors | R3: Body Type | S3: Jan | T3: Feb | U3: Mar | V3: Apr | W3: May | X3: Jun | Y3: Jul | Z3: Aug | AA3: Sep | AB3: Oct | AC3: Nov | AD3: Dec
A4: PROJECT SP#: | B4: =IF(+Forecast!$H$23=0," ",+Forecast!$H$23) ->  | G4: YEAR OF COUNT ->: | R4: CARS+PICKUP | S4: 1.101818568 | T4: 1.042399606 | U4: 1.020715235 | V4: 0.9825595111 | W4: 0.9804214303 | X4: 0.9524454101 | Y4: 0.9021672653 | Z4: 0.8851863969 | AA4: 0.8463204291 | AB4: 0.9766528447 | AC4: 1.054754554 | AD4: 1.129700419
A5: MONTH NUMBER OF COUNT: | G5: CONSTRAIN AADT ->: | R5: 2ASU | S5: 0.9026364913 | T5: 0.9152095345 | U5: 0.8809693435 | V5: 0.8433149801 | W5: 0.8049514058 | X5: 0.9077923889 | Y5: 0.79842163 | Z5: 0.7463956493 | AA5: 0.6742423882 | AB5: 0.8110823695 | AC5: 0.878061286 | AD5: 0.9497618566
A6: 16 or 24 HR | B6: 24 | R6: 3+ASU | S6: 1.192485605 | T6: 1.196781163 | U6: 1.149691715 | V6: 0.8838166574 | W6: 0.7900560436 | X6: 0.8404904399 | Y6: 0.6830196815 | Z6: 0.6685616697 | AA6: 0.5786451918 | AB6: 0.6134526971 | AC6: 0.7366804617 | AD6: 1.001165084
A7: VEHICLE TYPE | C7: RAW COUNT | D7: AADT ADJ FACTOR | F7: ADJUSTED RAW | G7: VEH. TYPE PERCENTS | H7: A.C.F. | K7: Note: The URBAN adjustment factors were | R7: 3A Semi | S7: 1.119647785 | T7: 1.098865688 | U7: 1.032355984 | V7: 0.9031212033 | W7: 0.8352405532 | X7: 0.8564495131 | Y7: 0.7867958545 | Z7: 0.6742755593 | AA7: 0.6669477105 | AB7: 0.8886683685 | AC7: 0.827933027 | AD7: 1.080772858
A8: CARS AND PICKUPS | D8: =IF(O9=1,IF(+I5=0,(IF(B6=16,1.09,1)*CHOOSE((C5)+1,1,1.31,1.23,1.19,1.06,0.98,0.92,0.84,0.88,0.91,0.95,1.08,1.12)),NA()),IF(+I5=0,(IF(B6=16,1.09,1)*CHOOSE((C5)+1,1,1.08,1.04,1.04,0.97,0.97,0.96,0.91,0.9,0.93,0.88,0.97,1)),NA())) -> 1 | F8: =IF(+I5=0,ROUND(+D8*C8,0),+I5-SUM(F9:F15)) -> 0 | H8: =C16/(((C8+C9)*2+(C10+C11)*3+(C12+C14)*4+(C13+C15)*5)/2) ->  | K8: developed primarily for use in the Seven | R8: 4A Semi | S8: 1.119647785 | T8: 1.098865688 | U8: 1.032355984 | V8: 0.9031212033 | W8: 0.8352405532 | X8: 0.8564495131 | Y8: 0.7867958545 | Z8: 0.6742755593 | AA8: 0.6669477105 | AB8: 0.8886683685 | AC8: 0.827933027 | AD8: 1.080772858
A9: 2 AXLE 6 TIRE | D9: =IF(O9=1,IF(B6=16,1.08,1)*CHOOSE((C5)+1,1,1.02,0.93,0.96,0.89,0.85,0.87,0.83,0.83,0.76,0.77,0.88,1),IF(B6=16,1.08,1)*CHOOSE((C5)+1,1,0.96,0.88,0.92,0.9,0.89,0.86,0.8,0.76,0.83,0.76,0.79,0.84)) -> 1 | F9: =IF(B6=16,ROUND(+D9*C9,0),(IF(B6=24,ROUND(D9*C9,0),#VALUE!))) -> 0 | G9: =IF(F9=0,0,+F9/F16) -> 0 | K9: County Metropolitan Area. They can also | O9: 1 | R9: 5+A SEMI | S9: 0.8694207179 | T9: 0.8776904625 | U9: 0.8647540382 | V9: 0.8094064142 | W9: 0.792292913 | X9: 0.8333092409 | Y9: 0.7149806283 | Z9: 0.7108350254 | AA9: 0.6598929083 | AB9: 0.7505864443 | AC9: 0.8967585745 | AD9: 0.9413801686
A10: 3+ AXLE SINGLE UNIT | D10: =IF(O9=1,IF(B6=16,1.07,1)*CHOOSE((C5)+1,1,1.24,1.17,1.12,0.89,0.76,0.71,0.7,0.66,0.65,0.64,0.86,1.09),IF(B6=16,1.07,1)*CHOOSE((C5)+1,1,1.23,1.16,1.21,0.86,0.75,0.67,0.59,0.54,0.64,0.64,0.8,1.09)) -> 1 | F10: =IF(B6=16,ROUND(+D10*C10,0),(IF(B6=24,ROUND(D10*C10,0),#VALUE!))) -> 0 | G10: =IF(F10=0,0,+F10/F16) -> 0 | K10: be used for other cities with over 5,000 in pop. | N10: 2 | O10: 2 | P10: 16 | R10: TT/BUS | S10: 1.406614623 | T10: 1.328803664 | U10: 1.158738771 | V10: 1.026157718 | W10: 0.9327073295 | X10: 0.8621004092 | Y10: 0.7705178987 | Z10: 0.623245916 | AA10: 0.5899275403 | AB10: 0.7789227543 | AC10: 0.8803850224 | AD10: 1.168382181
A11: 3 AXLE SEMI (TST) | D11: =IF(O9=1,IF(B6=16,1.1,1)*CHOOSE((C5)+1,1,1.25,1.15,1.11,0.97,0.84,0.77,0.72,0.72,0.72,0.83,1.07,1.25),IF(B6=16,1.1,1)*CHOOSE((C5)+1,1,1.24,1.18,1.02,0.88,0.86,0.8,0.74,0.7,0.72,0.71,0.87,1.17)) -> 1 | F11: =IF(B6=16,ROUND(+D11*C11,0),(IF(B6=24,ROUND(D11*C11,0),#VALUE!))) -> 0 | G11: =IF(F11=0,0,+F11/F16) -> 0 | P11: 24 | R11: TWINS | S11: 0.890183558 | T11: 0.8452826494 | U11: 0.8246298829 | V11: 0.7536070918 | W11: 0.7787765432 | X11: 0.914883437 | Y11: 0.8313230333 | Z11: 0.7228027477 | AA11: 0.6972492539 | AB11: 0.7525653487 | AC11: 0.8886754755 | AD11: 0.8821039871
A12: 4 AXLE SEMI (TST) | D12: =IF(O9=1,IF(B6=16,1.1,1)*CHOOSE((C5)+1,1,1.25,1.15,1.11,0.97,0.84,0.77,0.72,0.72,0.72,0.83,1.07,1.25),IF(B6=16,1.1,1)*CHOOSE((C5)+1,1,1.24,1.18,1.02,0.88,0.86,0.8,0.74,0.7,0.72,0.71,0.87,1.17)) -> 1 | F12: =IF(B6=16,ROUND(+D12*C12,0),(IF(B6=24,ROUND(D12*C12,0),#VALUE!))) -> 0 | G12: =IF(F12=0,0,+F12/F16) -> 0
A13: 5+ AXLE SEMI (TST) | D13: =IF(O9=1, IF(B6=16,1.17,1)*CHOOSE((C5)+1,1,0.93,0.86,0.87,0.82,0.79,0.79,0.82,0.78,0.8,0.73,0.87,0.9),IF(B6=16,1.17,1)*CHOOSE((C5)+1,1,1.02,0.99,1,0.79,0.75,0.71,0.69,0.65,0.7,0.76,0.76,0.99)) -> 1 | F13: =IF(B6=16,ROUND(+D13*C13,0),(IF(B6=24,ROUND(D13*C13,0),#VALUE!))) -> 0 | G13: =IF(F13=0,0,+F13/F16) -> 0 | R13: New Seasonal Adjustment Factors For Rural Area
A14: TR TR, BUSES | D14: =IF(O9=1,IF(B6=16,1.09,1)*CHOOSE((C5)+1,1,1.6,1.44,1.31,0.99,0.81,0.75,0.67,0.68,0.7,0.68,0.96,1.4),IF(B6=16,1.09,1)*CHOOSE((C5)+1,1,1.51,1.31,1.19,1.03,0.92,0.82,0.76,0.71,0.74,0.77,0.94,1.07)) -> 1 | F14: =IF(B6=16,ROUND(+D14*C14,0),(IF(B6=24,ROUND(D14*C14,0),#VALUE!))) -> 0 | G14: =IF(F14=0,0,+F14/F16) -> 0
A15: TWIN TRAILERS | D15: =IF(O9=1,IF(B6=16,1.3,1)*CHOOSE((C5)+1,1,0.95,0.86,0.92,0.86,0.86,0.75,0.8,0.76,0.75,0.7,0.82,0.76),IF(B6=16,1.3,1)*CHOOSE((C5)+1,1,1.07,1.02,1.02,0.84,0.78,0.74,0.69,0.65,0.67,0.77,0.93,1.09)) -> 1 | F15: =IF(B6=16,ROUND(+D15*C15,0),(IF(B6=24,ROUND(D15*C15,0),#VALUE!))) -> 0 | G15: =IF(F15=0,0,+F15/F16) -> 0 | R15: Body Type | S15: Jan | T15: Feb | U15: Mar | V15: Apr | W15: May | X15: Jun | Y15: Jul | Z15: Aug | AA15: Sep | AB15: Oct | AC15: Nov | AD15: Dec
A16: TOTALS -----------> | C16: =SUM(C8:C15) -> 0 | D16: --------> | E16: =+F16/C16 ->  | F16: =SUM(F8:F15) -> 0 | G16: =SUM(F9:F15)/F16 ->  | H16: (%HC) | R16: CARS+PICKUP | S16: 1.31474341 | T16: 1.260555416 | U16: 1.21910632 | V16: 1.133579236 | W16: 0.9674365183 | X16: 0.8811334106 | Y16: 0.8068667431 | Z16: 0.8357105532 | AA16: 0.9492525986 | AB16: 1.029751516 | AC16: 1.125437083 | AD16: 1.198499723
R17: 2ASU | S17: 1.042113668 | T17: 1.079615196 | U17: 1.073531771 | V17: 0.9700373761 | W17: 0.8766061595 | X17: 0.8518294275 | Y17: 0.8505186426 | Z17: 0.8291160376 | AA17: 0.8099880704 | AB17: 0.8257555049 | AC17: 0.9336566414 | AD17: 0.9644660003
C18: DO YOU HAVE THE CORRECT RURAL OR URBAN FACTOR? | R18: 3+ASU | S18: 1.339197634 | T18: 1.439771113 | U18: 1.2792395 | V18: 0.9324515918 | W18: 0.8121908563 | X18: 0.6072317642 | Y18: 0.7099775765 | Z18: 0.6874079787 | AA18: 0.7041889955 | AB18: 0.6966682438 | AC18: 0.8492378659 | AD18: 1.245576541
A19: =+B2 ->  | Q19: 1 - January | R19: 3A Semi | S19: 1.574028515 | T19: 1.540791338 | U19: 1.492648881 | V19: 1.223354753 | W19: 0.8992402512 | X19: 0.8188352771 | Y19: 0.7347486488 | Z19: 0.6803021132 | AA19: 0.744357258 | AB19: 0.8756086261 | AC19: 1.096356596 | AD19: 1.273657955
A20: =+B3 ->  | Q20: 2 - February | R20: 4A Semi | S20: 1.574028515 | T20: 1.540791338 | U20: 1.492648881 | V20: 1.223354753 | W20: 0.8992402512 | X20: 0.8188352771 | Y20: 0.7347486488 | Z20: 0.6803021132 | AA20: 0.744357258 | AB20: 0.8756086261 | AC20: 1.096356596 | AD20: 1.273657955
Q21: 3 - March | R21: 5+A SEMI | S21: 0.9774273605 | T21: 0.9048104915 | U21: 0.8599070523 | V21: 0.8206315401 | W21: 0.7778721302 | X21: 0.7171337842 | Y21: 0.7732008439 | Z21: 0.7471229023 | AA21: 0.7637578228 | AB21: 0.7392151467 | AC21: 0.877552007 | AD21: 0.9310532595
Q22: 4 - April | R22: TT/BUS | S22: 2.053065092 | T22: 2.059457219 | U22: 1.54934048 | V22: 1.1114678 | W22: 0.8736816042 | X22: 0.7417814046 | Y22: 0.705897493 | Z22: 0.6679690633 | AA22: 0.7016210228 | AB22: 0.7888943814 | AC22: 1.01168125 | AD22: 1.575509804
Q23: 5 - May | R23: TWINS | S23: 1.420065205 | T23: 0.9516135039 | U23: 0.9414734563 | V23: 0.9360222446 | W23: 0.8601389411 | X23: 0.8665974564 | Y23: 0.8294879216 | Z23: 0.6612789319 | AA23: 0.6935770556 | AB23: 0.6096555077 | AC23: 0.7557197928 | AD23: 0.8949536413
Q24: 6 - June
Q25: 7 - July
Q26: 8 - August
Q27: 9 - September
Q28: 10 - October
Q29: 11 - November
Q30: 12 - December
A52: =IF($O$9=1,"You Have Selected the Rural Factor", "You Have Selected the Urban Factor") -> You Have Selected the Rural Factor

Sheet 16-24 Vehicle C.C.4
A1: 16 HR. OR 24 HR. VEHICLE CLASS COUNT EXPANSION WORKSHEET 4 | R1: New Seasonal Adjustment Factors For Urban Area
A2: SITE NUMBER: | B2: =IF(+'16-24 Vehicle C.C.1'!$B$2=0," ",+'16-24 Vehicle C.C.1'!$B$2) ->  | G2: COUNTY: | H2: =IF(+Forecast!$H$25=0," ",+Forecast!$H$25) ->  | K2: Area type must be selected
A3: SITE DESCRIPTION: | B3: =IF(+'16-24 Vehicle C.C.1'!$B$3=0," ",+'16-24 Vehicle C.C.1'!$B$3) ->  | K3: for correct adjustment factors | R3: Body Type | S3: Jan | T3: Feb | U3: Mar | V3: Apr | W3: May | X3: Jun | Y3: Jul | Z3: Aug | AA3: Sep | AB3: Oct | AC3: Nov | AD3: Dec
A4: PROJECT SP#: | B4: =IF(+Forecast!$H$23=0," ",+Forecast!$H$23) ->  | G4: YEAR OF COUNT ->: | R4: CARS+PICKUP | S4: 1.101818568 | T4: 1.042399606 | U4: 1.020715235 | V4: 0.9825595111 | W4: 0.9804214303 | X4: 0.9524454101 | Y4: 0.9021672653 | Z4: 0.8851863969 | AA4: 0.8463204291 | AB4: 0.9766528447 | AC4: 1.054754554 | AD4: 1.129700419
A5: MONTH NUMBER OF COUNT: | G5: CONSTRAIN AADT ->: | R5: 2ASU | S5: 0.9026364913 | T5: 0.9152095345 | U5: 0.8809693435 | V5: 0.8433149801 | W5: 0.8049514058 | X5: 0.9077923889 | Y5: 0.79842163 | Z5: 0.7463956493 | AA5: 0.6742423882 | AB5: 0.8110823695 | AC5: 0.878061286 | AD5: 0.9497618566
A6: 16 or 24 HR | B6: 24 | R6: 3+ASU | S6: 1.192485605 | T6: 1.196781163 | U6: 1.149691715 | V6: 0.8838166574 | W6: 0.7900560436 | X6: 0.8404904399 | Y6: 0.6830196815 | Z6: 0.6685616697 | AA6: 0.5786451918 | AB6: 0.6134526971 | AC6: 0.7366804617 | AD6: 1.001165084
A7: VEHICLE TYPE | C7: RAW COUNT | D7: AADT ADJ FACTOR | F7: ADJUSTED RAW | G7: VEH. TYPE PERCENTS | H7: A.C.F. | K7: Note: The URBAN adjustment factors were | R7: 3A Semi | S7: 1.119647785 | T7: 1.098865688 | U7: 1.032355984 | V7: 0.9031212033 | W7: 0.8352405532 | X7: 0.8564495131 | Y7: 0.7867958545 | Z7: 0.6742755593 | AA7: 0.6669477105 | AB7: 0.8886683685 | AC7: 0.827933027 | AD7: 1.080772858
A8: CARS AND PICKUPS | D8: =IF(O9=1,IF(+I5=0,(IF(B6=16,1.09,1)*CHOOSE((C5)+1,1,1.31,1.23,1.19,1.06,0.98,0.92,0.84,0.88,0.91,0.95,1.08,1.12)),NA()),IF(+I5=0,(IF(B6=16,1.09,1)*CHOOSE((C5)+1,1,1.08,1.04,1.04,0.97,0.97,0.96,0.91,0.9,0.93,0.88,0.97,1)),NA())) -> 1 | F8: =IF(+I5=0,ROUND(+D8*C8,0),+I5-SUM(F9:F15)) -> 0 | H8: =C16/(((C8+C9)*2+(C10+C11)*3+(C12+C14)*4+(C13+C15)*5)/2) ->  | K8: developed primarily for use in the Seven | R8: 4A Semi | S8: 1.119647785 | T8: 1.098865688 | U8: 1.032355984 | V8: 0.9031212033 | W8: 0.8352405532 | X8: 0.8564495131 | Y8: 0.7867958545 | Z8: 0.6742755593 | AA8: 0.6669477105 | AB8: 0.8886683685 | AC8: 0.827933027 | AD8: 1.080772858
A9: 2 AXLE 6 TIRE | D9: =IF(O9=1,IF(B6=16,1.08,1)*CHOOSE((C5)+1,1,1.02,0.93,0.96,0.89,0.85,0.87,0.83,0.83,0.76,0.77,0.88,1),IF(B6=16,1.08,1)*CHOOSE((C5)+1,1,0.96,0.88,0.92,0.9,0.89,0.86,0.8,0.76,0.83,0.76,0.79,0.84)) -> 1 | F9: =IF(B6=16,ROUND(+D9*C9,0),(IF(B6=24,ROUND(D9*C9,0),#VALUE!))) -> 0 | G9: =IF(F9=0,0,+F9/F16) -> 0 | K9: County Metropolitan Area. They can also | O9: 1 | R9: 5+A SEMI | S9: 0.8694207179 | T9: 0.8776904625 | U9: 0.8647540382 | V9: 0.8094064142 | W9: 0.792292913 | X9: 0.8333092409 | Y9: 0.7149806283 | Z9: 0.7108350254 | AA9: 0.6598929083 | AB9: 0.7505864443 | AC9: 0.8967585745 | AD9: 0.9413801686
A10: 3+ AXLE SINGLE UNIT | D10: =IF(O9=1,IF(B6=16,1.07,1)*CHOOSE((C5)+1,1,1.24,1.17,1.12,0.89,0.76,0.71,0.7,0.66,0.65,0.64,0.86,1.09),IF(B6=16,1.07,1)*CHOOSE((C5)+1,1,1.23,1.16,1.21,0.86,0.75,0.67,0.59,0.54,0.64,0.64,0.8,1.09)) -> 1 | F10: =IF(B6=16,ROUND(+D10*C10,0),(IF(B6=24,ROUND(D10*C10,0),#VALUE!))) -> 0 | G10: =IF(F10=0,0,+F10/F16) -> 0 | K10: be used for other cities with over 5,000 in pop. | N10: 2 | O10: 2 | P10: 16 | R10: TT/BUS | S10: 1.406614623 | T10: 1.328803664 | U10: 1.158738771 | V10: 1.026157718 | W10: 0.9327073295 | X10: 0.8621004092 | Y10: 0.7705178987 | Z10: 0.623245916 | AA10: 0.5899275403 | AB10: 0.7789227543 | AC10: 0.8803850224 | AD10: 1.168382181
A11: 3 AXLE SEMI (TST) | D11: =IF(O9=1,IF(B6=16,1.1,1)*CHOOSE((C5)+1,1,1.25,1.15,1.11,0.97,0.84,0.77,0.72,0.72,0.72,0.83,1.07,1.25),IF(B6=16,1.1,1)*CHOOSE((C5)+1,1,1.24,1.18,1.02,0.88,0.86,0.8,0.74,0.7,0.72,0.71,0.87,1.17)) -> 1 | F11: =IF(B6=16,ROUND(+D11*C11,0),(IF(B6=24,ROUND(D11*C11,0),#VALUE!))) -> 0 | G11: =IF(F11=0,0,+F11/F16) -> 0 | P11: 24 | R11: TWINS | S11: 0.890183558 | T11: 0.8452826494 | U11: 0.8246298829 | V11: 0.7536070918 | W11: 0.7787765432 | X11: 0.914883437 | Y11: 0.8313230333 | Z11: 0.7228027477 | AA11: 0.6972492539 | AB11: 0.7525653487 | AC11: 0.8886754755 | AD11: 0.8821039871
A12: 4 AXLE SEMI (TST) | D12: =IF(O9=1,IF(B6=16,1.1,1)*CHOOSE((C5)+1,1,1.25,1.15,1.11,0.97,0.84,0.77,0.72,0.72,0.72,0.83,1.07,1.25),IF(B6=16,1.1,1)*CHOOSE((C5)+1,1,1.24,1.18,1.02,0.88,0.86,0.8,0.74,0.7,0.72,0.71,0.87,1.17)) -> 1 | F12: =IF(B6=16,ROUND(+D12*C12,0),(IF(B6=24,ROUND(D12*C12,0),#VALUE!))) -> 0 | G12: =IF(F12=0,0,+F12/F16) -> 0
A13: 5+ AXLE SEMI (TST) | D13: =IF(O9=1, IF(B6=16,1.17,1)*CHOOSE((C5)+1,1,0.93,0.86,0.87,0.82,0.79,0.79,0.82,0.78,0.8,0.73,0.87,0.9),IF(B6=16,1.17,1)*CHOOSE((C5)+1,1,1.02,0.99,1,0.79,0.75,0.71,0.69,0.65,0.7,0.76,0.76,0.99)) -> 1 | F13: =IF(B6=16,ROUND(+D13*C13,0),(IF(B6=24,ROUND(D13*C13,0),#VALUE!))) -> 0 | G13: =IF(F13=0,0,+F13/F16) -> 0 | R13: New Seasonal Adjustment Factors For Rural Area
A14: TR TR, BUSES | D14: =IF(O9=1,IF(B6=16,1.09,1)*CHOOSE((C5)+1,1,1.6,1.44,1.31,0.99,0.81,0.75,0.67,0.68,0.7,0.68,0.96,1.4),IF(B6=16,1.09,1)*CHOOSE((C5)+1,1,1.51,1.31,1.19,1.03,0.92,0.82,0.76,0.71,0.74,0.77,0.94,1.07)) -> 1 | F14: =IF(B6=16,ROUND(+D14*C14,0),(IF(B6=24,ROUND(D14*C14,0),#VALUE!))) -> 0 | G14: =IF(F14=0,0,+F14/F16) -> 0
A15: TWIN TRAILERS | D15: =IF(O9=1,IF(B6=16,1.3,1)*CHOOSE((C5)+1,1,0.95,0.86,0.92,0.86,0.86,0.75,0.8,0.76,0.75,0.7,0.82,0.76),IF(B6=16,1.3,1)*CHOOSE((C5)+1,1,1.07,1.02,1.02,0.84,0.78,0.74,0.69,0.65,0.67,0.77,0.93,1.09)) -> 1 | F15: =IF(B6=16,ROUND(+D15*C15,0),(IF(B6=24,ROUND(D15*C15,0),#VALUE!))) -> 0 | G15: =IF(F15=0,0,+F15/F16) -> 0 | R15: Body Type | S15: Jan | T15: Feb | U15: Mar | V15: Apr | W15: May | X15: Jun | Y15: Jul | Z15: Aug | AA15: Sep | AB15: Oct | AC15: Nov | AD15: Dec
A16: TOTALS -----------> | C16: =SUM(C8:C15) -> 0 | D16: --------> | E16: =+F16/C16 ->  | F16: =SUM(F8:F15) -> 0 | G16: =SUM(F9:F15)/F16 ->  | H16: (%HC) | R16: CARS+PICKUP | S16: 1.31474341 | T16: 1.260555416 | U16: 1.21910632 | V16: 1.133579236 | W16: 0.9674365183 | X16: 0.8811334106 | Y16: 0.8068667431 | Z16: 0.8357105532 | AA16: 0.9492525986 | AB16: 1.029751516 | AC16: 1.125437083 | AD16: 1.198499723
R17: 2ASU | S17: 1.042113668 | T17: 1.079615196 | U17: 1.073531771 | V17: 0.9700373761 | W17: 0.8766061595 | X17: 0.8518294275 | Y17: 0.8505186426 | Z17: 0.8291160376 | AA17: 0.8099880704 | AB17: 0.8257555049 | AC17: 0.9336566414 | AD17: 0.9644660003
C18: DO YOU HAVE THE CORRECT RURAL OR URBAN FACTOR? | R18: 3+ASU | S18: 1.339197634 | T18: 1.439771113 | U18: 1.2792395 | V18: 0.9324515918 | W18: 0.8121908563 | X18: 0.6072317642 | Y18: 0.7099775765 | Z18: 0.6874079787 | AA18: 0.7041889955 | AB18: 0.6966682438 | AC18: 0.8492378659 | AD18: 1.245576541
A19: =+B2 ->  | Q19: 1 - January | R19: 3A Semi | S19: 1.574028515 | T19: 1.540791338 | U19: 1.492648881 | V19: 1.223354753 | W19: 0.8992402512 | X19: 0.8188352771 | Y19: 0.7347486488 | Z19: 0.6803021132 | AA19: 0.744357258 | AB19: 0.8756086261 | AC19: 1.096356596 | AD19: 1.273657955
A20: =+B3 ->  | Q20: 2 - February | R20: 4A Semi | S20: 1.574028515 | T20: 1.540791338 | U20: 1.492648881 | V20: 1.223354753 | W20: 0.8992402512 | X20: 0.8188352771 | Y20: 0.7347486488 | Z20: 0.6803021132 | AA20: 0.744357258 | AB20: 0.8756086261 | AC20: 1.096356596 | AD20: 1.273657955
Q21: 3 - March | R21: 5+A SEMI | S21: 0.9774273605 | T21: 0.9048104915 | U21: 0.8599070523 | V21: 0.8206315401 | W21: 0.7778721302 | X21: 0.7171337842 | Y21: 0.7732008439 | Z21: 0.7471229023 | AA21: 0.7637578228 | AB21: 0.7392151467 | AC21: 0.877552007 | AD21: 0.9310532595
Q22: 4 - April | R22: TT/BUS | S22: 2.053065092 | T22: 2.059457219 | U22: 1.54934048 | V22: 1.1114678 | W22: 0.8736816042 | X22: 0.7417814046 | Y22: 0.705897493 | Z22: 0.6679690633 | AA22: 0.7016210228 | AB22: 0.7888943814 | AC22: 1.01168125 | AD22: 1.575509804
Q23: 5 - May | R23: TWINS | S23: 1.420065205 | T23: 0.9516135039 | U23: 0.9414734563 | V23: 0.9360222446 | W23: 0.8601389411 | X23: 0.8665974564 | Y23: 0.8294879216 | Z23: 0.6612789319 | AA23: 0.6935770556 | AB23: 0.6096555077 | AC23: 0.7557197928 | AD23: 0.8949536413
Q24: 6 - June
Q25: 7 - July
Q26: 8 - August
Q27: 9 - September
Q28: 10 - October
Q29: 11 - November
Q30: 12 - December
A52: =IF($O$9=1,"You Have Selected the Rural Factor", "You Have Selected the Urban Factor") -> You Have Selected the Rural Factor

Sheet New Avg Vehicle C.C.
A1: Vehicle Class Count Averages Worksheet
A2: VCC Site Num. | B2: =IF(+'16-24 Vehicle C.C.1'!$B$2=0," ",+'16-24 Vehicle C.C.1'!$B$2) -> 
A3: =Forecast!C22 -> 0 | B3: =IF(Forecast!C23=0," ",Forecast!C23) -> 
A4: Description | B4: =IF(+'16-24 Vehicle C.C.1'!$B$3=0," ",'16-24 Vehicle C.C.1'!$B$3) -> 
C6: 16-24 Vehicle C.C.1 | E6: 16-24 Vehicle C.C.2 | G6: 16-24 Vehicle C.C.3 | I6: 16-24 Vehicle C.C.4
B7: Type | C7: Year | D7: Pct | E7: Year | F7: Pct | G7: Year | H7: Pct | I7: Year | J7: Pct | K7: Avg | L7: Avg
C8: =+'16-24 Vehicle C.C.1'!$I$4 -> 0 | E8: =+'16-24 Vehicle C.C.2'!$I$4 -> 0 | G8: =+'16-24 Vehicle C.C.3'!$I$4 -> 0 | I8: =+'16-24 Vehicle C.C.4'!$I$4 -> 0 | K8: Truck | L8: Vehicle
B9: Man/Tube | C9: =+IF('16-24 Vehicle C.C.1'!$B$6=16,"Manual",IF('16-24 Vehicle C.C.1'!$B$6=24,"tube",0)) -> tube | E9: =+IF('16-24 Vehicle C.C.2'!$B$6=16,"Manual",IF('16-24 Vehicle C.C.2'!$B$6=24,"tube",0)) -> tube | G9: =+IF('16-24 Vehicle C.C.3'!$B$6=16,"Manual",IF('16-24 Vehicle C.C.3'!$B$6=24,"tube",0)) -> tube | I9: =+IF('16-24 Vehicle C.C.4'!$B$6=16,"Manual",IF('16-24 Vehicle C.C.4'!$B$6=24,"tube",0)) -> tube | K9: Volumes | L9: Pctages
A10: 1 | B10: Cars | C10: =+'16-24 Vehicle C.C.1'!$F8 -> 0 | D10: =C10/C$18 ->  | E10: =+'16-24 Vehicle C.C.2'!$F8 -> 0 | F10: =E10/E$18 ->  | G10: =+'16-24 Vehicle C.C.3'!$F8 -> 0 | H10: =G10/G$18 ->  | I10: =+'16-24 Vehicle C.C.4'!$F8 -> 0 | J10: =I10/I$18 ->  | K10: =AVERAGE(C10,E10,G10,I10) -> 0 | L10: =AVERAGE(D10:D10,F10:F10,H10:H10,J10:J10) -> 
A11: 2 | B11: 2 ASU | C11: =+'16-24 Vehicle C.C.1'!$F9 -> 0 | D11: =C11/C$18 ->  | E11: =+'16-24 Vehicle C.C.2'!$F9 -> 0 | G11: =+'16-24 Vehicle C.C.3'!$F9 -> 0 | I11: =+'16-24 Vehicle C.C.4'!$F9 -> 0 | J11: =I11/I$18 ->  | K11: =AVERAGE(C11:C11,E11:E11,G11:G11,I11:I11) -> 0 | L11: =AVERAGE(D11:D11,F11:F11,H11:H11,J11:J11) -> 
A12: 3 | B12: 3+ASU | C12: =+'16-24 Vehicle C.C.1'!$F10 -> 0 | E12: =+'16-24 Vehicle C.C.2'!$F10 -> 0 | G12: =+'16-24 Vehicle C.C.3'!$F10 -> 0 | I12: =+'16-24 Vehicle C.C.4'!$F10 -> 0 | K12: =AVERAGE(C12:C12,E12:E12,G12:G12,I12:I12) -> 0 | L12: =AVERAGE(D12:D12,F12:F12,H12:H12,J12:J12) -> 
A13: 4 | B13: 3ASemi | C13: =+'16-24 Vehicle C.C.1'!$F11 -> 0 | E13: =+'16-24 Vehicle C.C.2'!$F11 -> 0 | G13: =+'16-24 Vehicle C.C.3'!$F11 -> 0 | I13: =+'16-24 Vehicle C.C.4'!$F11 -> 0 | K13: 0 | L13: =AVERAGE(D13:D13,F13:F13,H13:H13,J13:J13) -> 
A14: 5 | B14: 4ASemi | C14: =+'16-24 Vehicle C.C.1'!$F12 -> 0 | E14: =+'16-24 Vehicle C.C.2'!$F12 -> 0 | G14: =+'16-24 Vehicle C.C.3'!$F12 -> 0 | I14: =+'16-24 Vehicle C.C.4'!$F12 -> 0 | K14: 0
A15: 6 | B15: 5+Asemi | C15: =+'16-24 Vehicle C.C.1'!$F13 -> 0 | E15: =+'16-24 Vehicle C.C.2'!$F13 -> 0 | G15: =+'16-24 Vehicle C.C.3'!$F13 -> 0 | I15: =+'16-24 Vehicle C.C.4'!$F13 -> 0 | K15: 0
A16: 7 | B16: TT/BUS | C16: =+'16-24 Vehicle C.C.1'!$F14 -> 0 | E16: =+'16-24 Vehicle C.C.2'!$F14 -> 0 | G16: =+'16-24 Vehicle C.C.3'!$F14 -> 0 | I16: =+'16-24 Vehicle C.C.4'!$F14 -> 0 | K16: 0
A17: 8 | B17: Twins | C17: =+'16-24 Vehicle C.C.1'!$F15 -> 0 | E17: =+'16-24 Vehicle C.C.2'!$F15 -> 0 | G17: =+'16-24 Vehicle C.C.3'!$F15 -> 0 | I17: =+'16-24 Vehicle C.C.4'!$F15 -> 0 | K17: 0
A18: Total | C18: =SUM(C10:C17) -> 0 | D18: =SUM(D11:D17) ->  | E18: =SUM(E10:E17) -> 0 | F18: =SUM(F11:F17) ->  | G18: =SUM(G10:G17) -> 0 | H18: =SUM(H11:H17) ->  | I18: =SUM(I10:I17) -> 0 | J18: =SUM(J11:J17) -> 
A19: Total Heavy Comm | C19: =SUM(C11:C17) -> 0 | E19: =SUM(E11:E17) -> 0 | G19: =SUM(G11:G17) -> 0 | I19: =SUM(I11:I17) -> 0 | K19: =AVERAGE(C19:C19,E19:E19,G19:G19,I19:I19) -> 0 | L19: =SUM(L10:L17) -> 
A20: Heavy 5+ Ax Semi* | L20: =AVERAGE(C20:J20) -> 
A21: Axle Corr Factor | D21: =+'16-24 Vehicle C.C.1'!H8 ->  | F21: =+'16-24 Vehicle C.C.2'!H8 ->  | H21: =+'16-24 Vehicle C.C.3'!H8 ->  | J21: =+'16-24 Vehicle C.C.4'!H8 ->  | L21: =AVERAGE(C21:J21) -> 
A23: * Heavy 5+ Ax Semi = Tank, Dump, Grain,and Stake Loaded | K23: Heavy 5 Axle Semi Split
A24: When the Tank, Dumps, & Grains and loaded stakes are 30% or more of the | K24: =$L$15*$L$20 ->  | L24: Max
A25: 5 axle semis, then split into max and other categories (AUTOMATICALLY DONE) -----------> | K25: =$L$15-$K$24 ->  | L25: Others
A26: Check out tube counts prior to 1996 carefully, body types are N/A prior to 1982, don't use tube | K26: =IF(L20<30%,"DON'T SPLIT","SPLIT") -> 
A27: collected previous to 1990.
A29: NOTE: IF LESS THAN 4 ENTRIES, BE SURE
A30: TO DELETE YEAR AND PCT COLUMN
A31: DO NOT USE 0, LEAVE BLANK.
A32: USER MUST THEN COPY THE FORMULA IN THE
A33: PCT COLUMNS BACK TO THE APPROPRIATE COLUMN

Sheet Least Squares
A1: LEAST SQUARES WORKSHEET | P1: 1 | Q1: max | R1: =IF(B34>2,MAX(P32:P55),1) -> 1 | S1: =R1 -> 1 | U1: =S2+200 -> 200
A2: ROUTE: | B2: =CONCATENATE('New Avg Vehicle C.C.'!A3," ",'New Avg Vehicle C.C.'!B3) -> 0 | D2: SP#: | E2: =IF(+Forecast!H23=0," ",Forecast!H23) ->  | G2: DATE | H2: =+Forecast!C10 -> 2013-02-15T09:32:49.330 | Q2: min | R2: =MIN(B7:B17) -> 0 | S2: =R2 -> 0
A3: LOCATION:
A4: BASE YEAR: | E4: FORECAST YEAR: | F4: =B4+20 -> 20
A6: YEAR | B6: FLOW MAP AADT (SEG A)
A7: 1990
A8: 1992
A9: 1994
A10: 1996
A11: 1998
A12: 2000
A13: 2002
A14: 2004
A15: 2006
A16: 2008
A17: 2010
A23: _______________________ | B23: _______________________ | C23: _______________________ | D23: _______________________ | E23: _______________________ | F23: _______________________ | G23: _______________________ | H23: _______________________ | I23: _______________________
A24: LEAST SQUARES BASED FORECASTS:
A25: Year | B25: AADT (Seg. A) | D25: Calc | E25: ADT Calc
A26: =MAX(A7:A22) -> 2010 | B26: =IF(A26=0,NA,10*ROUND((($A$26*B$32)+B$33)/10,0)) -> 0 | D26: =VLOOKUP(A26,$A$17:$B$22,2,FALSE)-B26 -> 0 | E26: =B26+D26 -> 0
A27: =B4 -> 0 | B27: =IF(B34=0,NA,10*ROUND((($A$27*B$32)+B$33)/10,0)) ->  | E27: =B27+D26 -> 
A28: =F4 -> 20 | B28: =IF(G37=0,NA,10*ROUND((($A$28*B$32)+B$33)/10,0)) ->  | E28: =B28+D26 -> 
A29: _______________________ | B29: _______________________ | C29: _______________________ | D29: _______________________ | E29: _______________________ | F29: _______________________ | G29: _______________________ | H29: _______________________ | I29: _______________________
A30: Statistics | B30: AADT (Seg. A)
A31: R 2 | B31: =((A120-(SUM(A62:A78)*SUM(B7:B22))/A60)/SQRT((A101-((SUM(A62:A78))^2)/A60)*(C101-((SUM(B7:B22))^2)/A60)))^2 ->  | G31: YEAR | H31: AADT
A32: SLOPE | B32: =IF(+B4=0,0,((A60*A120-SUM(A62:A78)*SUM(B7:B22))/(A60*A101-(SUM(A62:A78)^2)))) -> 0 | G32: =A26 -> 2010 | H32: =+ROUND(E26,-2) -> 0 | O32: =IF(P32=" ", ,A7) -> 0 | P32: =IF(B7=0," ",B7) -> 
A33: INTERCEPT | B33: =IF(+B4=0,0,+((SUM(B7:B22)*A101-SUM(A62:A78)*A120)/(A60*A101-(SUM(A62:A78)^2)))) -> 0 | G33: =A27 -> 0 | H33: =+ROUND(E27,-2) ->  | O33: =IF(P33=" ",0,A8) -> 0 | P33: =IF(B8=0," ",B8) -> 
A34: N | B34: =A60 -> 0 | G34: =A28 -> 20 | H34: =ROUND(IF(G37<0,H32*(1+1%*20),IF(G37<0,+ROUND(H32*(1+0.005*(F4-B4)),-2),+ROUND(E28,-2))),-2) ->  | O34: 0
O35: 0
G36: Slope Over Base Year | O36: 0
G37: =B32/H33 ->  | O37: 0
O38: 0
O39: 0
O40: 0
O41: 0 | P41: =IF(B16=0," ",B16) -> 
G42: YEAR | H42: AADT | O42: 0 | Q42: =H43 -> 0
G43: =A26 -> 2010 | H43: =H32 -> 0 | O43: =VALUE(G33) -> 0 | P43: =H33 ->  | Q43: =H44 -> 
G44: =A27 -> 0 | H44: =ROUND(((H45-H43)/(G45-G43)*(G44-G43)+H43)/50,0)*50 ->  | O44: =VALUE(O43+2) -> 2 | P44: =($P$53-$P$43)/($O$53-$O$43)*(O44-$O$43)+$P$43 ->  | Q44: =($Q$53-$Q$43)/($O$53-$O$43)*(O44-$O$43)+$Q$43 -> 
G45: =A28 -> 20 | H45: =ROUND(H33*(1+G48*20)/50,0)*50 ->  | O45: =VALUE(O44+2) -> 4
O46: 6
G47: Slope Over Base Year | O47: 8
G48: =IF(G37*D53<=0.5%,0.5%,G37*D53) ->  | O48: 10
O49: 12
O50: 14
O51: 16
B52: COUNTY | D52: COUNTY FACTOR | F52: GROWTH PROFILE | O52: =VALUE(O51+2) -> 18
B53: =UPPER(VLOOKUP(Forecast!H25,'Least Squares'!$A$174:$C$261,1,FALSE)) ->  | D53: =VLOOKUP(Forecast!H25,'Least Squares'!$A$174:$C$261,2,FALSE) ->  | F53: =UPPER(VLOOKUP(Forecast!H25,'Least Squares'!$A$174:$C$261,3,FALSE)) ->  | O53: =VALUE(O52+2) -> 20 | P53: =H34 ->  | Q53: =IF(G48<0,I45,H45) -> 
P54: 0
P55: 1
B56: _______________________ | C56: _______________________ | D56: _______________________ | E56: _______________________ | F56: _______________________ | G56: _______________________ | H56: _______________________ | I56: _______________________ | O56: =O53+6 -> 26
A58: LEAST SQUARES WORK AREA
A59: NADT1
A60: =COUNTA(B7:B22) -> 0
A61: YRADT1
A62: =IF(B7=0,0,A7) -> 0 | B62: =IF(A62=0,1,0) -> 1
A63: =IF(B8=0,0,A8) -> 0 | B63: =IF(A63=0,1,0) -> 1
A64: 0 | B64: 1
A65: 0 | B65: 1
A66: 0 | B66: 1
A67: 0 | B67: 1
A68: 0 | B68: 1
A69: 0 | B69: 1
A70: 0 | B70: 1
A71: 0 | B71: 1
A72: 0 | B72: 1
A73: 0 | B73: 1
A74: 0 | B74: 1
A75: 0 | B75: 1
A76: 0 | B76: 1
A77: 0 | B77: 1
A79: COUNT ABOVE | C79: COUNT ABOVE
A80: =COUNTA(A62:A77) -> 16 | C80: =COUNT(B7:B17) -> 0
A81: AVG ABOVE NON "0" | C81: AVG ABOVE NON "0"
A82: =SUM(A62:A77)/(A80-SUM(B62:B77)) -> 
A83: YEARS^2 | B83: -----> | C83: ADTS1^2
A84: =A62^2 -> 0 | C84: =B7^2 -> 0
A85: =A63^2 -> 0 | C85: =B8^2 -> 0
A86: 0 | C86: 0
A87: 0 | C87: 0
A88: 0 | C88: 0
A89: 0 | C89: 0
A90: 0 | C90: 0
A91: 0 | C91: 0
A92: 0 | C92: 0
A93: 0 | C93: 0
A94: 0 | C94: 0
A95: 0 | C95: 0
A96: 0 | C96: 0
A97: 0 | C97: 0
A98: 0 | C98: 0
A99: 0 | C99: 0
A100: SUM YR 2 | C100: SUM ADT 2
A101: =SUM(A84:A99) -> 0 | C101: =SUM(C84:C99) -> 0
A102: YR*ADT1
A103: =B7*A62 -> 0
A104: =B8*A63 -> 0
A105: 0
A106: 0
A107: 0
A108: 0
A109: 0
A110: 0
A111: 0
A112: 0
A113: 0
A114: 0
A115: 0
A116: 0
A117: 0
A118: 0
A119: SUMA1*YR
A120: =SUM(A103:A118) -> 0
A174: County | B174: Factor | C174: Area Type
A175: Aitkin | B175: 0.95 | C175: High Growth Area
A176: Anoka | B176: 0.95 | C176: High Growth Area
A177: Becker | B177: 0.9387339609 | C177: Medium Growth Area
A178: Beltrami | B178: 0.95 | C178: High Growth Area
A179: Benton | B179: 0.95 | C179: High Growth Area
A180: Big Stone | B180: 0.8944759202 | C180: Low Growth Area
A181: Blue Earth | B181: 0.75 | C181: Medium Growth Area
A182: Brown | B182: 0.7896922659 | C182: Low Growth Area
A183: Carlton | B183: 0.95 | C183: Medium Growth Area
A184: Carver | B184: 0.95 | C184: High Growth Area
A185: Cass | B185: 0.95 | C185: High Growth Area
A186: Chippewa | B186: 0.8733104434 | C186: Low Growth Area
A187: Chisago | B187: 0.881279837 | C187: High Growth Area
A188: Clay | B188: 0.75 | C188: Low Growth Area
A189: Clearwater | B189: 0.8438234218 | C189: Low Growth Area
A190: Cook | B190: 0.75 | C190: Medium Growth Area
A191: Cottonwood | B191: 0.8331705696 | C191: Low Growth Area
A192: Crow Wing | B192: 0.8832312646 | C192: High Growth Area
A193: Dakota | B193: 0.8547421962 | C193: High Growth Area
A194: Dodge | B194: 0.95 | C194: High Growth Area
A195: Douglas | B195: 0.8873831958 | C195: High Growth Area
A196: Faribault | B196: 0.865981121 | C196: Low Growth Area
A197: Fillmore | B197: 0.8896061418 | C197: Low Growth Area
A198: Freeborn | B198: 0.755552827 | C198: Low Growth Area
A199: Goodhue | B199: 0.9273647987 | C199: Medium Growth Area
A200: Grant | B200: 0.75 | C200: Low Growth Area
A201: Hennepin | B201: 0.8272566422 | C201: Low Growth Area
A202: Houston | B202: 0.8378015226 | C202: Low Growth Area
A203: Hubbard | B203: 0.8346205138 | C203: High Growth Area
A204: Isanti | B204: 0.95 | C204: High Growth Area
A205: Itasca | B205: 0.8886716849 | C205: Medium Growth Area
A206: Jackson | B206: 0.9180626248 | C206: Medium Growth Area
A207: Kanabec | B207: 0.8135838922 | C207: Medium Growth Area
A208: Kandiyohi | B208: 0.8938419831 | C208: Medium Growth Area
A209: Kittson | B209: 0.8024358458 | C209: Low Growth Area
A210: Koochiching | B210: 0.7937489549 | C210: Low Growth Area
A211: Lac qui Parle | B211: 0.75 | C211: Low Growth Area
A212: Lake | B212: 0.8562919136 | C212: Low Growth Area
A213: Lake of the Woods | B213: 0.9138862817 | C213: Low Growth Area
A214: Le Sueur | B214: 0.95 | C214: Medium Growth Area
A215: Lincoln | B215: 0.8857449991 | C215: Low Growth Area
A216: Lyon | B216: 0.75 | C216: Low Growth Area
A217: Mahnomen | B217: 0.75 | C217: Low Growth Area
A218: Marshall | B218: 0.95 | C218: Low Growth Area
A219: Martin | B219: 0.8201303604 | C219: Low Growth Area
A220: McLeod | B220: 0.8928164106 | C220: Medium Growth Area
A221: Meeker | B221: 0.926111411 | C221: Medium Growth Area
A222: Mille Lacs | B222: 0.95 | C222: High Growth Area
A223: Morrison | B223: 0.9495694712 | C223: Medium Growth Area
A224: Mower | B224: 0.8302978459 | C224: Low Growth Area
A225: Murray | B225: 0.8387247211 | C225: Medium Growth Area
A226: Nicollet | B226: 0.8240013933 | C226: Medium Growth Area
A227: Nobles | B227: 0.7549960093 | C227: Low Growth Area
A228: Norman | B228: 0.8022447962 | C228: Low Growth Area
A229: Olmsted | B229: 0.95 | C229: High Growth Area
A230: Otter Tail | B230: 0.8614026285 | C230: Medium Growth Area
A231: Pennington | B231: 0.95 | C231: Medium Growth Area
A232: Pine | B232: 0.8448776659 | C232: High Growth Area
A233: Pipestone | B233: 0.75 | C233: Low Growth Area
A234: Polk | B234: 0.75 | C234: Low Growth Area
A235: Pope | B235: 0.9029074643 | C235: Medium Growth Area
A236: Ramsey | B236: 0.8087858109 | C236: Low Growth Area
A237: Red Lake | B237: 0.95 | C237: Medium Growth Area
A238: Redwood | B238: 0.75 | C238: Low Growth Area
A239: Renville | B239: 0.8480251476 | C239: Low Growth Area
A240: Rice | B240: 0.8220040162 | C240: Medium Growth Area
A241: Rock | B241: 0.75 | C241: Low Growth Area
A242: Roseau | B242: 0.8847517198 | C242: Medium Growth Area
A243: Scott | B243: 0.95 | C243: High Growth Area
A244: Sherburne | B244: 0.95 | C244: High Growth Area
A245: Sibley | B245: 0.8646549065 | C245: Medium Growth Area
A246: St. Louis | B246: 0.850777855 | C246: Low Growth Area
A247: Stearns | B247: 0.8586120378 | C247: High Growth Area
A248: Steele | B248: 0.8848664209 | C248: Medium Growth Area
A249: Stevens | B249: 0.7999567113 | C249: Low Growth Area
A250: Swift | B250: 0.8706429381 | C250: Low Growth Area
A251: Todd | B251: 0.8988708026 | C251: Medium Growth Area
A252: Traverse | B252: 0.7652278953 | C252: Low Growth Area
A253: Wabasha | B253: 0.8182478469 | C253: Low Growth Area
A254: Wadena | B254: 0.95 | C254: Medium Growth Area
A255: Waseca | B255: 0.7963073355 | C255: Low Growth Area
A256: Washington | B256: 0.95 | C256: High Growth Area
A257: Watonwan | B257: 0.75 | C257: Low Growth Area
A258: Wilkin | B258: 0.75 | C258: Low Growth Area
A259: Winona | B259: 0.8284012539 | C259: Low Growth Area
A260: Wright | B260: 0.95 | C260: High Growth Area
A261: Yellow Medicine | B261: 0.8780713455 | C261: Low Growth Area

Sheet Cumesal-A
A1: CUMULATIVE ESALS WORKSHEET | D1: SEGMENT A
A2: SP#: | B2: =IF(+Forecast!H23=0," ",+Forecast!H23) -> 
A3: ROUTE: | B3: ='Least Squares'!B2:C2 -> 0 | C3: # LANES: | E3: DATE: | F3: =+Forecast!C10 -> 2013-02-15T09:32:49.330
A4: LOCATION:
A5: VCL SITE #: | B5: =+'New Avg Vehicle C.C.'!B2 -> 
B6: YEAR | C6: AADT | D6: INIT CALC HCADT | E6: CONSTRN HCADT | F6: INIT CALC 5AX TST | G6: CONSTRAIN 5AX TST
A7: VEH.CLASS YR.: | D7: =IF(C7="NA","NA",10*ROUND((SUM(B13:B21)*C7/10),0)) ->  | E7: 0 | F7: --- | G7: ---
A8: BASE YEAR: | B8: =+'Least Squares'!B4 -> 0 | D8: =10*ROUND(SUM(B13:B21)*C8/10,0) ->  | F8: =ROUND(SUM(B17:B19)*C8,0) -> 
A9: FORECAST YEAR: | B9: ='Least Squares'!F4 -> 20 | D9: =10*ROUND(SUM(F13:F21)*C9/10,0) ->  | F9: =ROUND(SUM(F17:F19)*C9,0) -> 
A11: BASE YEAR PROPORTIONS | D11: BASE YR. VOLUME | E11: % TREND | F11: FORECAST % | G11: FUTURE VOL.
A12: ------------------------------------ | B12: ------------------------------------ | C12: ------------------------------------ | D12: ------------------------------------ | E12: ------------------------------------ | F12: ------------------------------------ | G12: ------------------------------------
A13: 2AX-6TIRE SU | B13: =+'New Avg Vehicle C.C.'!L11 ->  | D13: =ROUND(IF(AND($G$8>0,$E$8>0),(B13/(SUM($B$13:$B$21)-SUM($B$17:$B$19)))*($E$8-$G$8),IF(AND($G$8>0,$E$8=0),(B13/(SUM($B$13:$B$21)-SUM($B$17:$B$19)))*($D$8-$G$8),IF(AND($G$8=0,$E$8>0),(B13/SUM($B$13:$B$21))*$E$8,(B13/SUM($B$13:$B$21))*$D$8))),0) ->  | E13: 1 | F13: =E13*B13 ->  | G13: =ROUND(IF(AND($G$9>0,$E$9>0),(F13/(SUM(B13:B21)-SUM(F13:F21)))*($E$9-$G$9),IF(AND($G$9>0,$E$9=0),(F13/(SUM(B13:B21)-SUM(F13:F21)))*($D$9-$G$9),IF(AND($G$9=0,$E$9>0),(F13/SUM(B13:B21))*$E$9,(F13/SUM(B13:B21))*$D$9))),0) -> 
A14: 3AX+ SU | B14: =+'New Avg Vehicle C.C.'!L12 ->  | E14: 1 | F14: =E14*B14 ->  | G14: =ROUND(IF(AND($G$9>0,$E$9>0),(F14/(SUM(B13:B21)-SUM(F14:F22)))*($E$9-$G$9),IF(AND($G$9>0,$E$9=0),(F14/(SUM(B13:B21)-SUM(F14:F22)))*($D$9-$G$9),IF(AND($G$9=0,$E$9>0),(F14/SUM(B13:B21))*$E$9,(F14/SUM(B13:B21))*$D$9))),0) -> 
A15: 3AX TST | B15: =+'New Avg Vehicle C.C.'!L13 ->  | E15: 1 | G15: =ROUND(IF(AND($G$9>0,$E$9>0),(F15/(SUM(B13:B21)-SUM(F15:F23)))*($E$9-$G$9),IF(AND($G$9>0,$E$9=0),(F15/(SUM(B13:B21)-SUM(F15:F23)))*($D$9-$G$9),IF(AND($G$9=0,$E$9>0),(F15/SUM(B13:B21))*$E$9,(F15/SUM(B13:B21))*$D$9))),0) -> 
A16: 4AX TST | B16: =+'New Avg Vehicle C.C.'!L14 ->  | E16: 1 | G16: =ROUND(IF(AND($G$9>0,$E$9>0),(F16/(SUM(B13:B21)-SUM(F16:F24)))*($E$9-$G$9),IF(AND($G$9>0,$E$9=0),(F16/(SUM(B13:B21)-SUM(F16:F24)))*($D$9-$G$9),IF(AND($G$9=0,$E$9>0),(F16/SUM(B13:B21))*$E$9,(F16/SUM(B13:B21))*$D$9))),0) -> 
A17: 5AX+ TST | B17: =+IF('New Avg Vehicle C.C.'!L20<0.3,'New Avg Vehicle C.C.'!L15,"0") ->  | E17: 1 | G17: =ROUND(IF(AND($G$9>0,$E$9>0),(F17/(SUM(B13:B21)-SUM(F17:F25)))*($E$9-$G$9),IF(AND($G$9>0,$E$9=0),(F17/(SUM(B13:B21)-SUM(F17:F25)))*($D$9-$G$9),IF(AND($G$9=0,$E$9>0),(F17/SUM(B13:B21))*$E$9,(F17/SUM(B13:B21))*$D$9))),0) -> 
A18: (5AX+ TST MAX) | B18: =+IF('New Avg Vehicle C.C.'!L20>=0.3,'New Avg Vehicle C.C.'!K24,"0") ->  | E18: 1 | G18: =ROUND(IF(AND($G$9>0,$E$9>0),(F18/(SUM(B13:B21)-SUM(F18:F26)))*($E$9-$G$9),IF(AND($G$9>0,$E$9=0),(F18/(SUM(B13:B21)-SUM(F18:F26)))*($D$9-$G$9),IF(AND($G$9=0,$E$9>0),(F18/SUM(B13:B21))*$E$9,(F18/SUM(B13:B21))*$D$9))),0) -> 
A19: (5AX+ TST OTH) | B19: =+IF('New Avg Vehicle C.C.'!L20>=0.3,'New Avg Vehicle C.C.'!K25,"0") ->  | E19: 1 | G19: =ROUND(IF(AND($G$9>0,$E$9>0),(F19/(SUM(B13:B21)-SUM(F19:F27)))*($E$9-$G$9),IF(AND($G$9>0,$E$9=0),(F19/(SUM(B13:B21)-SUM(F19:F27)))*($D$9-$G$9),IF(AND($G$9=0,$E$9>0),(F19/SUM(B13:B21))*$E$9,(F19/SUM(B13:B21))*$D$9))),0) -> 
A20: TR TR, BUSES | B20: =+'New Avg Vehicle C.C.'!L16 ->  | E20: 1 | G20: =ROUND(IF(AND($G$9>0,$E$9>0),(F20/(SUM(B13:B21)-SUM(F20:F28)))*($E$9-$G$9),IF(AND($G$9>0,$E$9=0),(F20/(SUM(B13:B21)-SUM(F20:F28)))*($D$9-$G$9),IF(AND($G$9=0,$E$9>0),(F20/SUM(B13:B21))*$E$9,(F20/SUM(B13:B21))*$D$9))),0) -> 
A21: TWIN TRAILERS | B21: =+'New Avg Vehicle C.C.'!L17 ->  | E21: 1 | G21: =ROUND(IF(AND($G$9>0,$E$9>0),(F21/(SUM(B13:B21)-SUM(F21:F29)))*($E$9-$G$9),IF(AND($G$9>0,$E$9=0),(F21/(SUM(B13:B21)-SUM(F21:F29)))*($D$9-$G$9),IF(AND($G$9=0,$E$9>0),(F21/SUM(B13:B21))*$E$9,(F21/SUM(B13:B21))*$D$9))),0) -> 
A22: ------------------------------------ | B22: ------------------------------------ | C22: ------------------------------------ | D22: ------------------------------------ | E22: ------------------------------------ | F22: ------------------------------------ | G22: ------------------------------------
A23: SUMMARIES: | C23: AADT | D23: HCADT | E23: HCADT % | F23: =A26-A25 -> 20 | G23: YR DESIGN
A24: =B7 -> 0 | B24: COUNT: | C24: =C7 -> 0 | D24: =D7 ->  | E24: =IF(C24="NA","NA",+D24/C24) ->  | F24: LANE CUMULATIVE ESAL
A25: =B8 -> 0 | B25: FORECAST: | C25: =C8 -> 0 | D25: =IF(E8>0,E8,D8) ->  | E25: =IF(E8>0,E8,D8)/C25 ->  | F25: | | G25: | | I25: =30/815 -> 0.03680981595
A26: =B9 -> 20 | B26: FORECAST: | C26: =C9 -> 0 | D26: =IF(E9>0,E9,D9) ->  | E26: =IF(E9>0,E9,D9)/C26 ->  | F26: ***************** | G26: *****************
F27: FLEXIBLE | G27: RIGID
A28: DESIGN LANE FACTOR: | C28: =CHOOSE((D3)+1,#VALUE!,1,0.5,0.5,0.45,0.45,0.35,0.35) ->  | F28: =1000*ROUND(IF((C63-1)+1>29,CHOOSE(C63,F92,F93,F94,F95,F96,F97,F98),CHOOSE(C63,F63,F64,F65,F66,F67,F68,F69,F70,F71,F72,F73,F74,F75,F76,F77,F78,F79,F80,F81,F82,F83,F84,F85,F86,F87,F88,F89,F90,F91))*1.12/1000,0) ->  | G28: =1000*ROUND(IF((C63-1)+1>29,CHOOSE((C63-1)+1,G92,G93,G94,G95,G96,G97,G98),CHOOSE(C63,G63,G64,G65,G66,G67,G68,G69,G70,G71,G72,G73,G74,G75,G76,G77,G78,G79,G80,G81,G82,G83,G84,G85,G86,G87,G88,G89,G90,G91))*1.12/1000,0) -> 
F29: ***************** | G29: *****************
A30: ADDITIONAL OUTPUTS: | E30: ESAL FACTORS
B31: BASE % | C31: FORECAST % | E31: FLEXIBLE | F31: RIGID
A32: 2AX-6TIRE SU | B32: =D13/$C$25 ->  | C32: =G13/$C$26 ->  | E32: 0.25 | F32: =IF(E32<0.11,E32,E32-0.01) -> 0.24
A33: 3AX+ SU | B33: =D14/$C$25 ->  | E33: 0.58 | F33: =IF(E33<0.36,(E33*1.62364-0.070909)+0.01,(IF(E33<0.4,E33*1.62364-0.07909,(IF(E33<0.66,(E33*1.62364-0.07909)-0.01,(IF(E33<0.69,E33*1.62364-0.07909,(E33*1.62364-0.07909)+0.02))))))) -> 0.8526212
A34: 3AX TST | E34: 0.39 | F34: =IF(E34<0.28,E34-0.01,(IF(E34<0.56,E34-0.02,E34-0.03))) -> 0.37
A35: 4AX TST | E35: 0.51 | F35: =IF(E35<0.41,E35,(IF(E35<0.47,E35+0.01,(IF(E35<0.54,E35+0.02,(IF(E35<0.61,E35+0.03,(IF(E35<0.67,E35+0.04,E35+0.05))))))))) -> 0.53
A36: 5AX+ TST | E36: 1.13 | F36: =(+E36*1.71536-0.05351)+0.005 -> 1.8898468
A37: (5AX+ TST MAX) | E37: 2.4 | F37: =(+E37*1.71536-0.05351)+0.005 -> 4.068354
A38: (5AX+ TST OTH) | E38: 0.87 | F38: =(+E38*1.71536-0.05351)+0.005 -> 1.4438532
A39: TR TR, BUSES | E39: 0.57 | F39: =E39*1.35636-0.03091 -> 0.7422152
A40: TWIN TRAILERS | E40: 2.4 | F40: =(+E40*0.97519-0.01494)+0.005 -> 2.330516
A41: Notes:
B46: - | C46: - | D46: - | E46: - | F46: - | G46: -
A47: CUMULATIVE ESAL WORK AREA | D47: BY VOL | E47: BY | F47: FY | G47: FY
A48: | | B48: BYVOLS | C48: FYVOLS | D48: * BESAL | E48: VOL*CESAL | F48: VOL*BESAL | G48: VOL*CESAL
A49: | | B49: =D13 ->  | C49: =G13 ->  | D49: =E32*B49 ->  | E49: =F32*B49 ->  | F49: =E32*C49 ->  | G49: =F32*C49 -> 
A50: | | B50: =D14 -> 
A51: |
A52: |
A53: |
A54: |
A55: |
A56: |
A57: |
A58: TWO WAY ADL --> | D58: FLEX ADL | E58: RIG ADL | F58: FLEX ADL | G58: RIG ADL
A59: | | D59: =($C$8-SUM($B$49:$B$57))*0.0007+SUM(D49:D57) ->  | E59: =($C$8-SUM($B$49:$B$57))*0.0007+SUM(E49:E57) ->  | F59: =(((C9-SUM($C$49:$C$57))*0.0007)+SUM(F49:F57)) ->  | G59: =($C$9-SUM($C$49:$C$57))*0.0007+SUM(G49:G57) -> 
A61: CUMULATIVE ESAL CALCULATIONS (DESIGN LANE) | F61: FLEXIBLE | G61: RIGID
B62: INCLUSIVE | C62: YEARS | E62: DAYS
A63: FUTURE YR - BASE YR = | C63: =B9-B8+1 -> 21 | E63: 365.25 | F63: =$D$59*$E63*$C$28+F62 ->  | G63: =$E$59*$E63*$C$28+G62 -> 
E64: =+E63+365.25 -> 730.5 | F64: =(365.25*$D$59+$E63*$A$67)*$C$28+F63 ->  | G64: =(365.25*$E$59+$E63*$B$67)*$C$28+G63 -> 
A65: ANNUAL AVERAGE CHANGE IN 2 WAY ADL | E65: =+E64+365.25 -> 1095.75 | F65: =(365.25*$D$59+$E64*$A$67)*$C$28+F64 -> 
A66: FLEXIBLE | B66: RIGID | E66: 1461 | F66: =(365.25*$D$59+$E65*$A$67)*$C$28+F65 -> 
A67: =(+F59-D59)/($C$63-1) ->  | B67: =(+G59-E59)/($C$63-1) ->  | E67: 1826.25
E68: 2191.5
E69: 2556.75
E70: 2922
E71: 3287.25
E72: 3652.5
E73: 4017.75
E74: 4383
E75: 4748.25
E76: 5113.5
E77: 5478.75
E78: 5844
E79: 6209.25
E80: 6574.5
E81: 6939.75
E82: 7305
E83: 7670.25
E84: 8035.5
E85: 8400.75
E86: 8766
E87: 9131.25
E88: 9496.5
E89: 9861.75
E90: 10227
E91: 10592.25
E92: 10957.5
E93: 11322.75
E94: 11688
E95: 12053.25
E96: 12418.5
E97: 12783.75
E98: 13149

Sheet Esal Report - A
B1: CUMULATIVE ESAL REPORT - A
F2: DATE: | G2: =+Forecast!C10 -> 2013-02-15T09:32:49.330
B3: ROUTE #: | C3: ='Least Squares'!B2 -> 0 | D3: DISTRICT: | E3: =IF(Forecast!H26=0," ",Forecast!H26) ->  | F3: SP#: | G3: =IF(Forecast!H23=0," ",Forecast!H23) -> 
B4: FORECAST #: | C4: =IF(Forecast!H24=0," ",Forecast!H24) ->  | D4: COUNTY: | E4: =IF(+Forecast!H25=0," ",Forecast!H25) ->  | F4: MILES:
B5: DESCRIPTION: | C5: ='Cumesal-A'!B4 -> 0
B6: AUTHOR'S DISTRICT: ---> | E6: AUTHOR:
B8: TRAFFIC SUMMARY
B9: BASE YEAR NUMBER OF LANES (two way): | E9: =+'Cumesal-A'!D3 -> 0
C10: BASE YEAR ---> | D10: =+'Least Squares'!B4 -> 0 | E10: DESIGN YEAR ----> | F10: ='Least Squares'!F4 -> 20 | G10: GROWTH / YR (SIMPLE %)
B12: AADT: two-way | D12: =+'Cumesal-A'!C8 -> 0 | F12: =+'Cumesal-A'!C9 -> 0 | G12: =((F12-D12)/(F10-D10))/D12 -> 
B13: design-lane | D13: =10*ROUND(CHOOSE((E9)+1,#VALUE!,1,0.5,0.5,0.45,0.45,0.35,0.35)*D12/10,0) ->  | F13: =10*ROUND(CHOOSE((E9)+1,#VALUE!,1,0.5,0.5,0.45,0.45,0.35,0.35)*F12/10,0) ->  | G13: =((F13-D13)/(F10-D10))/D13 -> 
B14: HCADT: two-way | D14: =IF(+$C$58=0,10*ROUND(SUM('Cumesal-A'!D13:D21)/10,0),10*ROUND((SUM('Cumesal-A'!D13:D21)+SUM('Cumesal-B'!D11:D19))/10,0)) ->  | F14: =IF(+C58=0,10*ROUND(SUM('Cumesal-A'!G13:G21)/10,0),10*ROUND((SUM('Cumesal-A'!G13:G21)+SUM('Cumesal-B'!G11:G19))/10,0)) ->  | G14: =((F14-D14)/(F10-D10))/D14 -> 
B15: SINGLE UNITS:two-way | D15: =IF(C58=0,10*ROUND(('Cumesal-A'!D13+'Cumesal-A'!D14)/10,0),10*ROUND((+'Cumesal-B'!D11+'Cumesal-B'!D12+'Cumesal-A'!D13+'Cumesal-A'!D14)/10,0)) ->  | F15: =IF($C$58=0,10*ROUND(('Cumesal-A'!G13+'Cumesal-A'!G14)/10,0),10*ROUND((+'Cumesal-B'!G11+'Cumesal-B'!G12+'Cumesal-A'!G13+'Cumesal-A'!G14)/10,0)) ->  | G15: =((F15-D15)/(F10-D10))/D15 -> 
B16: TST'S: two-way | D16: =IF($C$58=0,SUM('Cumesal-A'!D15:D19),SUM('Cumesal-A'!D15:D19)+SUM('Cumesal-B'!D13:D17)) ->  | F16: =IF($C$58=0,SUM('Cumesal-A'!G15:G19),SUM('Cumesal-A'!G15:G19)+SUM('Cumesal-B'!G13:G17)) ->  | G16: =((F16-D16)/(F10-D10))/D16 -> 
B17: 5 Ax +: two-way | D17: =SUM('Cumesal-A'!D17:D19) ->  | F17: =SUM('Cumesal-A'!G17:G19) ->  | G17: =((F17-D17)/(F10-D10))/D17 -> 
B18: ESAL SUMMARY
B19: ANNUAL DESIGN LANE ESAL
B20: FLEXIBLE: | D20: =IF(C58=0,+'Cumesal-A'!D59*'Cumesal-A'!C28*365.25,('Cumesal-A'!D59*'Cumesal-A'!C28+'Cumesal-B'!D61*'Cumesal-B'!C24)*365.25) ->  | F20: =IF(C58=0,+'Cumesal-A'!F59*'Cumesal-A'!C28*365.25,('Cumesal-A'!F59*'Cumesal-A'!C28+'Cumesal-B'!F61*'Cumesal-B'!C24)*365.25) ->  | G20: +
B21: RIGID: | D21: =IF(C58=0,+'Cumesal-A'!E59*'Cumesal-A'!C28*365.25,('Cumesal-A'!E59*'Cumesal-A'!C28+'Cumesal-B'!E61*'Cumesal-B'!C24)*365.25) ->  | F21: =IF(C58=0,'Cumesal-A'!G59*'Cumesal-A'!C28*365.25,('Cumesal-A'!G59*'Cumesal-A'!C28+'Cumesal-B'!G61*'Cumesal-B'!C24)*365.25) ->  | G21: +
B23: CUMULATIVE DESIGN-LANE ESALS (10 TON) | F23: Design-lane factor: | G23: =+'Cumesal-A'!C28 -> 
B24: FOR VARIABLE TIME PERIODS
A28: BASE | B28: DESIGN | C28: TIME | D28: DESIGN-LANE | F28: ESALS
A29: YEAR | B29: YEAR | C29: PERIOD | D29: TST'S | F29: FLEXIBLE | G29: RIGID
A32: =D10 -> 0 | B32: =D10+10 -> 10 | C32: 10 Year | D32: =G23*(10*($F$16-$D$16)/(F10-D10)+D16) ->  | F32: =IF(C58=0,1000*ROUND('Cumesal-A'!F73*1.12/1000,0),1000*ROUND(('Cumesal-A'!F73*'Cumesal-B'!C24/'Cumesal-A'!C28+'Cumesal-B'!F75)*1.12/1000,0)) ->  | G32: =IF(D58=0,1000*ROUND('Cumesal-A'!G73*1.12/1000,0),1000*ROUND(('Cumesal-A'!G73*'Cumesal-B'!D24/'Cumesal-A'!D28+'Cumesal-B'!G75)*1.12/1000,0)) -> 
A34: =D10 -> 0 | B34: =D10+15 -> 15 | C34: 15 Year | D34: =G23*(15*($F$16-$D$16)/(F10-D10)+D16) ->  | F34: =IF(C58=0,1000*ROUND('Cumesal-A'!F78*1.12/1000,0),1000*ROUND(('Cumesal-A'!F78*'Cumesal-B'!C24/'Cumesal-A'!C28+'Cumesal-B'!F80)*1.12/1000,0)) ->  | G34: =IF(D58=0,1000*ROUND('Cumesal-A'!G78*1.12/1000,0),1000*ROUND(('Cumesal-A'!G78*'Cumesal-B'!C24/'Cumesal-A'!C28+'Cumesal-B'!G80)*1.12/1000,0)) -> 
A36: =D10 -> 0 | B36: =D10+20 -> 20 | C36: 20 Year | D36: =G23*(20*($F$16-$D$16)/(F10-D10)+D16) ->  | F36: =IF(C58=0,1000*ROUND('Cumesal-A'!F83*1.12/1000,0),1000*ROUND(('Cumesal-A'!F83*'Cumesal-B'!C24/'Cumesal-A'!C28+'Cumesal-B'!F85)*1.12/1000,0)) ->  | G36: =IF(D58=0,1000*ROUND('Cumesal-A'!G83*1.12/1000,0),1000*ROUND(('Cumesal-A'!G83*'Cumesal-B'!D24/'Cumesal-A'!D28+'Cumesal-B'!G85)*1.12/1000,0)) -> 
A38: =D10 -> 0 | B38: =D10+25 -> 25 | C38: 25 Year | D38: =G23*(25*($F$16-$D$16)/(F10-D10)+D16) ->  | F38: =IF(C58=0,1000*ROUND('Cumesal-A'!F88*1.12/1000,0),1000*ROUND(('Cumesal-A'!F88*'Cumesal-B'!C24/'Cumesal-A'!C28+'Cumesal-B'!F90)*1.12/1000,0)) ->  | G38: =IF(D58=0,1000*ROUND('Cumesal-A'!G88*1.12/1000,0),1000*ROUND(('Cumesal-A'!G88*'Cumesal-B'!D24/'Cumesal-A'!D28+'Cumesal-B'!G90)*1.12/1000,0)) -> 
A40: =D10 -> 0 | B40: =D10+30 -> 30 | C40: 30 Year | D40: =G23*(30*($F$16-$D$16)/(F10-D10)+D16) ->  | F40: =IF(C58=0,1000*ROUND('Cumesal-A'!F93*1.12/1000,0),1000*ROUND(('Cumesal-A'!F93*'Cumesal-B'!C24/'Cumesal-A'!C28+'Cumesal-B'!F95)*1.12/1000,0)) ->  | G40: =IF(D58=0,1000*ROUND('Cumesal-A'!G93*1.12/1000,0),1000*ROUND(('Cumesal-A'!G93*'Cumesal-B'!D24/'Cumesal-A'!D28+'Cumesal-B'!G95)*1.12/1000,0)) -> 
A42: =D10 -> 0 | B42: =D10+35 -> 35 | C42: 35 Year | D42: =G23*(35*($F$16-$D$16)/(F10-D10)+D16) ->  | F42: =IF(+$C$58=0,1000*ROUND((+'Cumesal-A'!F98*1.12/1000),0),1000*ROUND(((+'Cumesal-A'!F98*'Cumesal-B'!$C$24/'Cumesal-A'!$C$28+'Cumesal-B'!F100)-('Cumesal-A'!F62*'Cumesal-B'!$C$24/'Cumesal-A'!$C$28+'Cumesal-B'!F64))*1.12/1000,0)) ->  | G42: =IF(+$C$58=0,1000*ROUND((+'Cumesal-A'!G98*1.12/1000),0),1000*ROUND(((+'Cumesal-A'!G98*'Cumesal-B'!$C$24/'Cumesal-A'!$C$28+'Cumesal-B'!G100)-('Cumesal-A'!G62*'Cumesal-B'!$C$24/'Cumesal-A'!$C$28+'Cumesal-B'!G64))*1.12/1000,0)) -> 
B52: APPROVED BY: | F52: DATE:
C58: 0

Sheet Cumesal-B
A1: CUMULATIVE ESAL WORKSHEET | D1: SEGMENT B | I1: USE THE RURAL OR | J1: ENTER RURAL
A2: SP#: | B2: =IF(+Forecast!H23=0," ",Forecast!H23) ->  | I2: URBAN PCT'S | J2: OR URBAN BELOW
A3: ROUTE: | B3: ='Least Squares'!B2:C2 -> 0 | C3: # LANES: | D3: 2 | E3: DATE: | F3: =+Forecast!C10 -> 2013-02-15T09:32:49.330 | I3: BELOW FOR
A4: LOCATION: | I4: TYPE OF FORECAST
B5: YEAR | C5: AADT | F5: CALCULATED HCADT | G5: CONSTRAIN HCADT | I5: Check cells A42-F48
A6: BASE YEAR: | B6: =+'Least Squares'!B4 -> 0 | D6: =IF(C6=0,0,+C6-'Cumesal-A'!C8) -> 0 | E6: DIFFERENCE | F6: =10*ROUND(IF('Cumesal-A'!E8>0,'Cumesal-A'!E8+SUM(F10:F18)*D6,'Cumesal-A'!D8+SUM(F10:F18)*D6)/10,0) ->  | G6: 0 | I6: ENTER RURAL OR URBAN
A7: FORECAST YEAR: | B7: ='Least Squares'!F4 -> 20 | D7: =IF(C7=0,0,+C7-'Cumesal-A'!C9) -> 0 | E7: DIFFERENCE | F7: =10*ROUND(IF('Cumesal-A'!E9>0,'Cumesal-A'!E9+SUM(F11:F19)*D7,'Cumesal-A'!D9+SUM(F11:F19)*D7)/10,0) ->  | G7: 0 | I7: IN COLUMN J3
A9: INCREMENTAL HCADT ON SEGMENT B (2000-2004 Local Road Studies)
A10: BASE YEAR PROPORTIONS | D10: BASE YR. VOLUME | E10: % TREND | F10: FORECAST % | G10: FUTURE VOL. | I10: VEHICLE TYPE | J10: Urban | K10: Rural
A11: 2AX-6TIRE SU | B11: =IF($J$3="urban",J11,IF($J$3="rural",K11,"See J3")) -> See J3 | D11: =ROUND(IF(AND('Cumesal-A'!E7>0,$G$6>0),($G$6-'Cumesal-A'!E7)*B11/SUM($B$11:$B$17),IF(AND('Cumesal-A'!E7>0,$G$6=0),B11*$D$6,IF(AND('Cumesal-A'!E8=0,$G$6>0),($G$6-$R$7)*B11/SUM($B$11:$B$17),B11*$D$6))),0) ->  | E11: 1 | F11: =E11*B11 ->  | G11: =ROUND(IF(AND('Cumesal-A'!$E$9>0,$G$7>0),($G$7-'Cumesal-A'!$E$9)*F11/SUM($F$11:$F$19),IF(AND('Cumesal-A'!$E$9>0,$G$7=0),F11*$D$7,IF(AND('Cumesal-A'!$E$9=0,$G$7>0),($G$7-$R$8)*F11/SUM($F$11:$F$19),F11*$D$7))),0) ->  | I11: 2AX-6TIRE SU | J11: 0.0152 | K11: 0.0317
A12: 3AX+ SU | B12: =IF($J$3="urban",J12,IF($J$3="rural",K12,"See J3")) -> See J3 | D12: =ROUND(IF(AND('Cumesal-A'!$E$7>0,$G$6>0),($G$6-'Cumesal-A'!$E$7)*B12/SUM($B$11:$B$17),IF(AND('Cumesal-A'!$E$7>0,$G$6=0),B12*$D$6,IF(AND('Cumesal-A'!$E$7=0,$G$6>0),($G$6-$R$7)*B12/SUM($B$11:$B$17),B12*$D$6))),0) ->  | E12: 1 | G12: =ROUND(IF(AND('Cumesal-A'!$E$9>0,$G$7>0),($G$7-'Cumesal-A'!$E$9)*F12/SUM($F$11:$F$19),IF(AND('Cumesal-A'!$E$9>0,$G$7=0),F12*$D$7,IF(AND('Cumesal-A'!$E$9=0,$G$7>0),($G$7-$R$8)*F12/SUM($F$11:$F$19),F12*$D$7))),0) ->  | I12: 3AX+ SU | J12: 0.0046 | K12: 0.0164
A13: 3AX TST | B13: =IF($J$3="urban",J13,IF($J$3="rural",K13,"See J3")) -> See J3 | D13: =ROUND(IF(AND('Cumesal-A'!$E$7>0,$G$6>0),($G$6-'Cumesal-A'!$E$7)*B13/SUM($B$11:$B$17),IF(AND('Cumesal-A'!$E$7>0,$G$6=0),B13*$D$6,IF(AND('Cumesal-A'!$E$7=0,$G$6>0),($G$6-$R$7)*B13/SUM($B$11:$B$17),B13*$D$6))),0) ->  | E13: 1 | G13: =ROUND(IF(AND('Cumesal-A'!$E$9>0,$G$7>0),($G$7-'Cumesal-A'!$E$9)*F13/SUM($F$11:$F$19),IF(AND('Cumesal-A'!$E$9>0,$G$7=0),F13*$D$7,IF(AND('Cumesal-A'!$E$9=0,$G$7>0),($G$7-$R$8)*F13/SUM($F$11:$F$19),F13*$D$7))),0) ->  | I13: 3AX TST | J13: 0.0009 | K13: 0.0028
A14: 4AX TST | B14: =IF($J$3="urban",J14,IF($J$3="rural",K14,"See J3")) -> See J3 | D14: =ROUND(IF(AND('Cumesal-A'!$E$7>0,$G$6>0),($G$6-'Cumesal-A'!$E$7)*B14/SUM($B$11:$B$17),IF(AND('Cumesal-A'!$E$7>0,$G$6=0),B14*$D$6,IF(AND('Cumesal-A'!$E$7=0,$G$6>0),($G$6-$R$7)*B14/SUM($B$11:$B$17),B14*$D$6))),0) ->  | E14: 1 | G14: =ROUND(IF(AND('Cumesal-A'!$E$9>0,$G$7>0),($G$7-'Cumesal-A'!$E$9)*F14/SUM($F$11:$F$19),IF(AND('Cumesal-A'!$E$9>0,$G$7=0),F14*$D$7,IF(AND('Cumesal-A'!$E$9=0,$G$7>0),($G$7-$R$8)*F14/SUM($F$11:$F$19),F14*$D$7))),0) ->  | I14: 4AX TST | J14: 0.0012 | K14: 0.005
A15: 5AX+ TST | B15: =IF($J$3="urban",J15,IF($J$3="rural",K15,"See J3")) -> See J3 | D15: =ROUND(IF(AND('Cumesal-A'!$E$7>0,$G$6>0),($G$6-'Cumesal-A'!$E$7)*B15/SUM($B$11:$B$17),IF(AND('Cumesal-A'!$E$7>0,$G$6=0),B15*$D$6,IF(AND('Cumesal-A'!$E$7=0,$G$6>0),($G$6-$R$7)*B15/SUM($B$11:$B$17),B15*$D$6))),0) ->  | E15: 1 | G15: =ROUND(IF(AND('Cumesal-A'!$E$9>0,$G$7>0),($G$7-'Cumesal-A'!$E$9)*F15/SUM($F$11:$F$19),IF(AND('Cumesal-A'!$E$9>0,$G$7=0),F15*$D$7,IF(AND('Cumesal-A'!$E$9=0,$G$7>0),($G$7-$R$8)*F15/SUM($F$11:$F$19),F15*$D$7))),0) ->  | I15: 5AX+ TST | J15: 0.0089 | K15: 0.0326
A16: (5AX+ TST MAX) | B16: 0 | D16: =ROUND(IF(AND('Cumesal-A'!$E$7>0,$G$6>0),($G$6-'Cumesal-A'!$E$7)*B16/SUM($B$11:$B$17),IF(AND('Cumesal-A'!$E$7>0,$G$6=0),B16*$D$6,IF(AND('Cumesal-A'!$E$7=0,$G$6>0),($G$6-$R$7)*B16/SUM($B$11:$B$17),B16*$D$6))),0) -> 0 | E16: 1 | F16: 0 | G16: =ROUND(IF(AND('Cumesal-A'!$E$9>0,$G$7>0),($G$7-'Cumesal-A'!$E$9)*F16/SUM($F$11:$F$19),IF(AND('Cumesal-A'!$E$9>0,$G$7=0),F16*$D$7,IF(AND('Cumesal-A'!$E$9=0,$G$7>0),($G$7-$R$8)*F16/SUM($F$11:$F$19),F16*$D$7))),0) -> 0 | I16: TR TR, BUSES | J16: 0.0047 | K16: 0.012
A17: (5AX+ TST OTH) | B17: 0 | D17: =ROUND(IF(AND('Cumesal-A'!$E$7>0,$G$6>0),($G$6-'Cumesal-A'!$E$7)*B17/SUM($B$11:$B$17),IF(AND('Cumesal-A'!$E$7>0,$G$6=0),B17*$D$6,IF(AND('Cumesal-A'!$E$7=0,$G$6>0),($G$6-$R$7)*B17/SUM($B$11:$B$17),B17*$D$6))),0) -> 0 | E17: 1 | F17: 0 | G17: =ROUND(IF(AND('Cumesal-A'!$E$9>0,$G$7>0),($G$7-'Cumesal-A'!$E$9)*F17/SUM($F$11:$F$19),IF(AND('Cumesal-A'!$E$9>0,$G$7=0),F17*$D$7,IF(AND('Cumesal-A'!$E$9=0,$G$7>0),($G$7-$R$8)*F17/SUM($F$11:$F$19),F17*$D$7))),0) -> 0 | I17: TWIN TRAILERS | J17: 0.0002 | K17: 0.0002
A18: TR TR, BUSES | B18: =IF($J$3="urban",J16,IF($J$3="rural",K16,"See J3")) -> See J3 | D18: =ROUND(IF(AND('Cumesal-A'!$E$7>0,$G$6>0),($G$6-'Cumesal-A'!$E$7)*B18/SUM($B$11:$B$17),IF(AND('Cumesal-A'!$E$7>0,$G$6=0),B18*$D$6,IF(AND('Cumesal-A'!$E$7=0,$G$6>0),($G$6-$R$7)*B18/SUM($B$11:$B$17),B18*$D$6))),0) ->  | E18: 1 | G18: =ROUND(IF(AND('Cumesal-A'!$E$9>0,$G$7>0),($G$7-'Cumesal-A'!$E$9)*F18/SUM($F$11:$F$19),IF(AND('Cumesal-A'!$E$9>0,$G$7=0),F18*$D$7,IF(AND('Cumesal-A'!$E$9=0,$G$7>0),($G$7-$R$8)*F18/SUM($F$11:$F$19),F18*$D$7))),0) ->  | I18: TOTAL | J18: =SUM(J11:J17) -> 0.0357 | K18: =SUM(K11:K17) -> 0.1007
A19: TWIN TRAILERS | B19: =IF($J$3="urban",J17,IF($J$3="rural",K17,"See J3")) -> See J3 | D19: =ROUND(IF(AND('Cumesal-A'!$E$7>0,$G$6>0),($G$6-'Cumesal-A'!$E$7)*B19/SUM($B$11:$B$17),IF(AND('Cumesal-A'!$E$7>0,$G$6=0),B19*$D$6,IF(AND('Cumesal-A'!$E$7=0,$G$6>0),($G$6-$R$7)*B19/SUM($B$11:$B$17),B19*$D$6))),0) ->  | E19: 1 | G19: =ROUND(IF(AND('Cumesal-A'!$E$9>0,$G$7>0),($G$7-'Cumesal-A'!$E$9)*F19/SUM($F$11:$F$19),IF(AND('Cumesal-A'!$E$9>0,$G$7=0),F19*$D$7,IF(AND('Cumesal-A'!$E$9=0,$G$7>0),($G$7-$R$8)*F19/SUM($F$11:$F$19),F19*$D$7))),0) -> 
A20: SUMMARIES: | B20: =J3 -> 0 | C20: 0 | D20: ADDED | E20: COMBINED | F20: =B23-B22 -> 20 | G20: YR DESIGN | I20: Note: The URBAN vehicle types were developed primarily for use
C21: AADT | D21: HCADT % | E21: HCADT % | F21: LANE CUMULATIVE ESAL | I21: in the Seven County Metropolitan Area + Chisago Cty. They can also be used
A22: BASE YEAR: | B22: =B6 -> 0 | C22: =D6 -> 0 | D22: =IF(SUM(D11:D19)=0,"",(SUM(D11:D19)/C22)) ->  | E22: =IF(SUM(D11:D19)=0,"",(SUM(D11:D19)+SUM('Cumesal-A'!D13:D21))/C6) ->  | F22: | | G22: | | I22: for segments that are near cities with over 5,000 population.
A23: FORECAST YEAR: | B23: =B7 -> 20 | C23: =D7 -> 0 | D23: =SUM(G11:G19)/C23 ->  | E23: =IF(C7=0,"",(SUM(G11:G19)+SUM('Cumesal-A'!G13:G21))/C7) ->  | F23: ***************** | G23: ***************** | I23: CAUTION: USE ONLY ONE SET OF DEFAULTS ON EACH "A" SEGMENT
A24: DESIGN LANE FACTOR: | C24: =CHOOSE((D3)+1,'Cumesal-A'!C28,1,0.5,0.5,0.45,0.45,0.35,0.35) -> 0.5 | F24: FLEXIBLE | G24: RIGID
C25: SEGMENT B INCREMENT ONLY: | F25: =1000*ROUND(IF((C65-1)+1>29,CHOOSE(C65,F94,F95,F96,F97,F98,F99,F100),CHOOSE(C65,F65,F66,F67,F68,F69,F70,F71,F72,F73,F74,F75,F76,F77,F78,F79,F80,F81,F82,F83,F84,F85,F86,F87,F88,F89,F90,F91,F92,F93))*1.12/1000,0) ->  | G25: =1000*ROUND(IF((C65-1)+1>29,CHOOSE(C65,G94,G95,G96,G97,G98,G99,G100),CHOOSE(C65,G65,G66,G67,G68,G69,G70,G71,G72,G73,G74,G75,G76,G77,G78,G79,G80,G81,G82,G83,G84,G85,G86,G87,G88,G89,G90,G91,G92,G93))*1.12/1000,0) -> 
C26: SEGMENT A + SEGMENT B: | F26: =1000*(ROUND((+F25+'Cumesal-A'!F28*C24/'Cumesal-A'!C28)/1000,0)) ->  | G26: =1000*(ROUND((+G25+'Cumesal-A'!G28*C24/'Cumesal-A'!C28)/1000,0)) ->  | I26: =B40 -> 
F27: ***************** | G27: *****************
A28: ADDITIONAL OUTPUTS: | E28: ESAL FACTORS
B29: BASE % | C29: FORECAST % | E29: FLEXIBLE | F29: RIGID
A30: 2AX-6TIRE SU | B30: =D11/$C$22 ->  | C30: =G11/$C$23 ->  | E30: 0.25 | F30: =IF(E30<0.11,E30,E30-0.01) -> 0.24
A31: 3AX+ SU | E31: 0.58 | F31: =IF(E31<0.36,(E31*1.62364-0.070909)+0.01,(IF(E31<0.4,E31*1.62364-0.07909,(IF(E31<0.66,(E31*1.62364-0.07909)-0.01,(IF(E31<0.69,E31*1.62364-0.07909,(E31*1.62364-0.07909)+0.02))))))) -> 0.8526212
A32: 3AX TST | E32: 0.39 | F32: =IF(E32<0.28,E32-0.01,(IF(E32<0.56,E32-0.02,E32-0.03))) -> 0.37 | I32: =C40 -> 
A33: 4AX TST | E33: 0.51 | F33: =IF(E33<0.41,E33,(IF(E33<0.47,E33+0.01,(IF(E33<0.54,E33+0.02,(IF(E33<0.61,E33+0.03,(IF(E33<0.67,E33+0.04,E33+0.05))))))))) -> 0.53
A34: 5AX+ TST | E34: 1.13 | F34: =(+E34*1.71536-0.05351)+0.005 -> 1.8898468
A35: (5AX+ TST MAX) | E35: 2.4 | F35: =(+E35*1.71536-0.05351)+0.005 -> 4.068354
A36: (5AX+ TST OTH) | E36: 0.87 | F36: =(+E36*1.71536-0.05351)+0.005 -> 1.4438532
A37: TR TR, BUSES | E37: 0.57 | F37: =E37*1.35636-0.03091 -> 0.7422152
A38: TWIN TRAILERS | E38: 2.4 | F38: =(+E38*0.97519-0.01494)+0.005 -> 2.330516
A39: BSEGment | H39: When B segment ESALS and AADT vary significantly from each other with no trunk highway junction in between segments, then the difference may be mainly cars. In these instances, the default B segment percentages may need to be adjusted to reflect logical addition or subtraction of trucks, or to smooth out the volume of trucks between all B segments
B40: =IF(OR(D11<0-'Cumesal-A'!D13*0.5,D12<0-'Cumesal-A'!D14*0.5,D13<0-'Cumesal-A'!D15*0.5,D14<0-'Cumesal-A'!D16*0.5,SUM(D15:D17)<0-SUM('Cumesal-A'!D17:'Cumesal-A'!D19)*0.5,D18<0-'Cumesal-A'!D20*0.5,D19<0-'Cumesal-A'!D21*0.5),"Warning-taking away more than 50% of trucks from A segment. Reduce B segment truck percentages in base year","OK") ->  | C40: =IF(OR(G11<0-'Cumesal-A'!G13*0.5,G12<0-'Cumesal-A'!G14*0.5,G13<0-'Cumesal-A'!G15*0.5,G14<0-'Cumesal-A'!G16*0.5,SUM(G15:G17)<0-SUM('Cumesal-A'!G17:'Cumesal-A'!G19)*0.5,G18<0-'Cumesal-A'!G20*0.5,G19<0-'Cumesal-A'!G21*0.5),"Warning-taking away more than 50% of trucks from A segment. Reduce B segment truck percentages in forecast year","OK") -> 
A41: BASE YEAR | B41: =IF(OR(D11>'Cumesal-A'!D13*0.5,D12>'Cumesal-A'!D14*0.5,D13>'Cumesal-A'!D15*0.5,D14>'Cumesal-A'!D16*0.5,SUM(D15:D17)>SUM('Cumesal-A'!D17:'Cumesal-A'!D19)*0.5,D18>'Cumesal-A'!D20*0.5,D19>'Cumesal-A'!D21*0.5),"Warning-Adding more than 50% of trucks from A segment. Reduce B segment truck percentages in base year","OK") ->  | C41: =IF(OR(G11>'Cumesal-A'!G13*0.5,G12>'Cumesal-A'!G14*0.5,G13>'Cumesal-A'!G15*0.5,G14>'Cumesal-A'!G16*0.5,SUM(G15:G17)>SUM('Cumesal-A'!G17:'Cumesal-A'!G19)*0.5,G18>'Cumesal-A'!G20*0.5,G19>'Cumesal-A'!G21*0.5),"Adding more than 50% of trucks from A segment. Reduce B segment truck percentages in forecast year","OK") ->  | D41: FORECAST YEAR
A42: =B40 ->  | C42: Subtraction | D42: =C40 -> 
C45: of Trucks | I45: =B41 -> 
A46: =B41 ->  | C46: Addition | D46: =C41 -> 
C48: of Trucks
A49: CUMULATIVE ESAL WORK AREA | I49: =C41 -> 
B50: BYVOLS | C50: FYVOLS | D50: BY VOL * BESAL | E50: BY VOL *CESAL | F50: FY VOL *BESAL | G50: FY VOL *CESAL
B51: =D11 ->  | C51: =G11 ->  | D51: =E30*B51 ->  | E51: =F30*B51 ->  | F51: =E30*C51 ->  | G51: =F30*C51 -> 
B56: 0 | C56: 0 | D56: 0 | E56: 0 | F56: 0 | G56: 0
B57: 0 | C57: 0 | D57: 0 | E57: 0 | F57: 0 | G57: 0
A60: TWO WAY ADL --> | D60: FLEX ADL | E60: RIG ADL | F60: FLEX ADL | G60: RIG ADL
A61: | | D61: =$C$22*0.0007+SUM(D51:D59) ->  | E61: =$C$22*0.0007+SUM(E51:E59) ->  | F61: =$C$23*0.0007+SUM(F51:F59) ->  | G61: =$C$23*0.0007+SUM(G51:G59) -> 
A63: CUMULATIVE ESAL CALCULATIONS (DESIGN LANE) | F63: FLEXIBLE | G63: RIGID
B64: INCLUSIVE | C64: YEARS | E64: DAYS
A65: FUTURE YR - BASE YR = | C65: =B7-B6+1 -> 21 | E65: 365.25 | F65: =$D$61*$E65*$C$24+F64 ->  | G65: =$E$61*$E65*$C$24+G64 -> 
E66: 730.5 | F66: =(365.25*$D$61+$E65*$A$69)*$C$24+F65 ->  | G66: =(365.25*$E$61+$E65*$B$69)*$C$24+G65 -> 
A67: ANNUAL AVERAGE CHANGE IN 2 WAY ADL | E67: 1095.75
A68: FLEXIBLE | B68: RIGID | E68: 1461
A69: =(+F61-D61)/($C$65-1) ->  | B69: =(+G61-E61)/($C$65-1) ->  | E69: 1826.25
E70: 2191.5
E71: 2556.75
E72: 2922
E73: 3287.25
E74: 3652.5
E75: 4017.75
E76: 4383
E77: 4748.25
E78: 5113.5
E79: 5478.75
E80: 5844
E81: 6209.25
E82: 6574.5
E83: 6939.75
E84: 7305
E85: 7670.25
E86: 8035.5
E87: 8400.75
E88: 8766
E89: 9131.25
E90: 9496.5
E91: 9861.75
E92: 10227
E93: 10592.25
E94: 10957.5
E95: 11322.75
E96: 11688
E97: 12053.25
E98: 12418.5
E99: 12783.75 | F99: =(365.25*$D$61+$E98*$A$69)*$C$24+F98 -> 
E100: 13149 | F100: =(365.25*$D$61+$E99*$A$69)*$C$24+F99 -> 

Sheet Esal Report - B
B1: CUMULATIVE ESAL REPORT - B
F2: DATE: | G2: =+Forecast!C10 -> 2013-02-15T09:32:49.330
B3: ROUTE #: | C3: ='Least Squares'!B2 -> 0 | D3: DISTRICT: | E3: =IF(Forecast!H26=0," ",Forecast!H26) ->  | F3: SP#: | G3: =IF(Forecast!H23=0," ",Forecast!H23) -> 
B4: FORECAST #: | C4: =IF(Forecast!H24=0," ",Forecast!H24) ->  | D4: COUNTY: | E4: =IF(Forecast!H25=0," ",Forecast!H25) ->  | F4: MILES:
B5: DESCRIPTION: | C5: =+'Cumesal-B'!B4 -> 0
B6: AUTHOR'S DISTRICT: ---> | D6: =+'Esal Report - A'!D6 -> 0 | E6: AUTHOR: | F6: =+'Esal Report - A'!F6 -> 0
B8: TRAFFIC SUMMARY
B9: BASE YEAR NUMBER OF LANES (two way): | E9: =+'Cumesal-B'!D3 -> 2
C10: BASE YEAR ---> | D10: =+'Least Squares'!B4 -> 0 | E10: DESIGN YEAR ----> | F10: ='Least Squares'!F4 -> 20 | G10: GROWTH / YR (SIMPLE %)
B12: AADT: two-way | D12: =+'Cumesal-B'!C6 -> 0 | F12: =IF(C57=1,'Cumesal-B'!C7,IF(C57=0,'Cumesal-A'!C9)) -> 0 | G12: =((F12-D12)/(F10-D10))/D12 -> 
B13: design-lane | D13: =10*ROUND(CHOOSE((E9)+1,#VALUE!,1,0.5,0.5,0.45,0.45,0.35,0.35)*D12/10,0) -> 0 | F13: =10*ROUND(CHOOSE((E9)+1,#VALUE!,1,0.5,0.5,0.45,0.45,0.35,0.35)*F12/10,0) -> 0 | G13: =((F13-D13)/(F10-D10))/D13 -> 
B14: HCADT: two-way | D14: =IF(+$C$57=0,10*ROUND(SUM('Cumesal-A'!D13:D21)/10,0),10*ROUND((SUM('Cumesal-A'!D13:D21)+SUM('Cumesal-B'!D11:D19))/10,0)) ->  | F14: =IF(+C57=0,10*ROUND(SUM('Cumesal-A'!G13:G21)/10,0),10*ROUND((SUM('Cumesal-A'!G13:G21)+SUM('Cumesal-B'!G11:G19))/10,0)) ->  | G14: =((F14-D14)/(F10-D10))/D14 -> 
B15: SINGLE UNITS:two-way | D15: =IF(C57=0,10*ROUND(('Cumesal-A'!D13+'Cumesal-A'!D14)/10,0),10*ROUND((+'Cumesal-B'!D11+'Cumesal-B'!D12+'Cumesal-A'!D13+'Cumesal-A'!D14)/10,0)) ->  | F15: =IF($C$57=0,10*ROUND(('Cumesal-A'!G13+'Cumesal-A'!G14)/10,0),10*ROUND((+'Cumesal-B'!G11+'Cumesal-B'!G12+'Cumesal-A'!G13+'Cumesal-A'!G14)/10,0)) ->  | G15: =((F15-D15)/(F10-D10))/D15 -> 
B16: TST'S: two-way | D16: =IF($C$57=0,SUM('Cumesal-A'!D15:D19),SUM('Cumesal-A'!D15:D19)+SUM('Cumesal-B'!D13:D17)) ->  | F16: =IF($C$57=0,SUM('Cumesal-A'!G15:G19),SUM('Cumesal-A'!G15:G19)+SUM('Cumesal-B'!G13:G17)) ->  | G16: =((F16-D16)/(F10-D10))/D16 -> 
B17: 5 Ax +: two-way | D17: =('Esal Report - A'!D17)+SUM('Cumesal-B'!D15:D17) ->  | F17: =('Esal Report - A'!F17)+SUM('Cumesal-B'!G15:G17) ->  | G17: =((F17-D17)/(F10-D10))/D17 -> 
B18: ESAL SUMMARY
B19: ANNUAL DESIGN LANE ESAL
B20: FLEXIBLE: | D20: =IF(C57=0,+'Cumesal-A'!D59*'Cumesal-A'!C28*365.25,('Cumesal-A'!D59*'Cumesal-A'!C28+'Cumesal-B'!D61*'Cumesal-B'!C24)*365.25) ->  | F20: =IF(C57=0,+'Cumesal-A'!F59*'Cumesal-A'!C28*365.25,('Cumesal-A'!F59*'Cumesal-A'!C28+'Cumesal-B'!F61*'Cumesal-B'!C24)*365.25) ->  | G20: +
B21: RIGID: | D21: =IF(C57=0,+'Cumesal-A'!E59*'Cumesal-A'!C28*365.25,('Cumesal-A'!E59*'Cumesal-A'!C28+'Cumesal-B'!E61*'Cumesal-B'!C24)*365.25) ->  | F21: =IF(C57=0,'Cumesal-A'!G59*'Cumesal-A'!C28*365.25,('Cumesal-A'!G59*'Cumesal-A'!C28+'Cumesal-B'!G61*'Cumesal-B'!C24)*365.25) ->  | G21: +
B23: CUMULATIVE DESIGN-LANE ESALS (10 TON) | F23: Design-lane factor: | G23: =+'Cumesal-B'!C24 -> 0.5
B24: FOR VARIABLE TIME PERIODS
A29: BASE | B29: DESIGN | C29: TIME | D29: DESIGN-LANE | F29: ESALS
A30: YEAR | B30: YEAR | C30: PERIOD | D30: TST'S | F30: FLEXIBLE | G30: RIGID
A32: =D10 -> 0 | B32: =D10+10 -> 10 | C32: 10 YEAR | D32: =G23*(10*($F$16-$D$16)/(F10-D10)+D16) ->  | F32: =IF(C57=0,1000*ROUND('Cumesal-A'!F73*1.12/1000,0),1000*ROUND(('Cumesal-A'!F73*'Cumesal-B'!C24/'Cumesal-A'!C28+'Cumesal-B'!F75)*1.12/1000,0)) ->  | G32: =IF(C57=0,1000*ROUND('Cumesal-A'!G73*1.12/1000,0),1000*ROUND(('Cumesal-A'!G73*'Cumesal-B'!C24/'Cumesal-A'!C28+'Cumesal-B'!G75)*1.12/1000,0)) -> 
A34: =D10 -> 0 | B34: =D10+15 -> 15 | C34: 15 YEAR | D34: =G23*(15*($F$16-$D$16)/(F10-D10)+D16) ->  | F34: =IF(C57=0,1000*ROUND('Cumesal-A'!F78*1.12/1000,0),1000*ROUND(('Cumesal-A'!F78*'Cumesal-B'!C24/'Cumesal-A'!C28+'Cumesal-B'!F80)*1.12/1000,0)) ->  | G34: =IF(C57=0,1000*ROUND('Cumesal-A'!G78*1.12/1000,0),1000*ROUND(('Cumesal-A'!G78*'Cumesal-B'!C24/'Cumesal-A'!C28+'Cumesal-B'!G80)*1.12/1000,0)) -> 
A36: =D10 -> 0 | B36: =D10+20 -> 20 | C36: 20 YEAR | D36: =G23*(20*($F$16-$D$16)/(F10-D10)+$D$16) ->  | F36: =IF(C57=0,1000*ROUND('Cumesal-A'!F83*1.12/1000,0),1000*ROUND(('Cumesal-A'!F83*1.12*'Cumesal-B'!C24/'Cumesal-A'!C28+1000*ROUND('Cumesal-B'!F85*1.12/1000,0))/1000,0)) ->  | G36: =IF(C57=0,1000*ROUND('Cumesal-A'!G83*1.12/1000,0),1000*ROUND(('Cumesal-A'!G83*'Cumesal-B'!C24/'Cumesal-A'!C28+'Cumesal-B'!G85)*1.12/1000,0)) -> 
A38: =D10 -> 0 | B38: =D10+25 -> 25 | C38: 25 YEAR | D38: =G23*(25*($F$16-$D$16)/(F10-D10)+$D$16) ->  | F38: =IF(C57=0,1000*ROUND('Cumesal-A'!F88*1.12/1000,0),1000*ROUND(('Cumesal-A'!F88*1.12*'Cumesal-B'!C24/'Cumesal-A'!C28+1000*ROUND('Cumesal-B'!F90*1.12/1000,0))/1000,0)) ->  | G38: =IF(C57=0,1000*ROUND('Cumesal-A'!G88*1.12/1000,0),1000*ROUND(('Cumesal-A'!G88*'Cumesal-B'!C24/'Cumesal-A'!C28+'Cumesal-B'!G90)*1.12/1000,0)) -> 
A40: =D10 -> 0 | B40: =D10+30 -> 30 | C40: 30 YEAR | D40: =G23*(30*($F$16-$D$16)/(F10-D10)+$D$16) ->  | F40: =IF(C57=0,1000*ROUND('Cumesal-A'!F93*1.12/1000,0),1000*ROUND(('Cumesal-A'!F93*1.12*'Cumesal-B'!C24/'Cumesal-A'!C28+1000*ROUND('Cumesal-B'!F95*1.12/1000,0))/1000,0)) ->  | G40: =IF(C57=0,1000*ROUND('Cumesal-A'!G93*1.12/1000,0),1000*ROUND(('Cumesal-A'!G93*'Cumesal-B'!C24/'Cumesal-A'!C28+'Cumesal-B'!G95)*1.12/1000,0)) -> 
A42: =D10 -> 0 | B42: =D10+35 -> 35 | C42: 35 YEAR | D42: =G23*(35*($F$16-$D$16)/(F10-D10)+$D$16) ->  | F42: =IF(+$C$57=0,1000*ROUND((+'Cumesal-A'!F98*1.12/1000),0),1000*ROUND(((+'Cumesal-A'!F98*'Cumesal-B'!$C$24/'Cumesal-A'!$C$28+'Cumesal-B'!F100)-('Cumesal-A'!F62*'Cumesal-B'!$C$24/'Cumesal-A'!$C$28+'Cumesal-B'!F64))*1.12/1000,0)) ->  | G42: =IF(+$C$57=0,1000*ROUND((+'Cumesal-A'!G98*1.12/1000),0),1000*ROUND(((+'Cumesal-A'!G98*'Cumesal-B'!$C$24/'Cumesal-A'!$C$28+'Cumesal-B'!G100)-('Cumesal-A'!G62*'Cumesal-B'!$C$24/'Cumesal-A'!$C$28+'Cumesal-B'!G64))*1.12/1000,0)) -> 
B51: APPROVED BY: | F51: DATE:
C57: 1
